Workbook

Sheet 申し込みについて
O2: ※この枠内は、触らないでください。
G3: 令和７年度（2025年） | O3: 横浜支部 | P3: 中学生の部Ａ部門 | Q3: 単独校 | R3: ５月３１日（土）
G4: 第74回神奈川県吹奏楽コンクール予選 | O4: 川崎支部 | P4: 中学生の部Ｂ部門 | Q4: 合同バンド | R4: ５月３１日（土）
G5: 第26回支部吹奏楽コンクール | O5: 相模原支部 | P5: 高校生の部Ａ部門 | Q5: 地域バンド | R5: ５月２５日（日）
O6: 県南支部 | P6: 高校生の部Ｂ部門 | R6: ６月３日（火）
C7: １ 加盟支部を選択してください。 | I7: → | O7: 県央支部 | R7: ５月３０日（金）
O8: 西湘支部 | R8: ５月２９日（木）
C9: ２ 参加する部門を選択してください。 | I9: → | O9: 湘南支部 | R9: ５月２２日（木）
C11: ３ 参加する形態を選択してください。 | I11: →
O12: =+J9 -> 0 | Q12: =IF(O12="中学生の部Ａ部門","１５，０００円",IF(O12="中学生の部Ｂ部門","１2，０００円",IF(O12="高校生の部Ａ部門","１５，０００円",IF(O12="高校生の部Ｂ部門","１2，０００円","")))) -> 
C13: ４ 学校コードを入力してください。 | I13: →
C14: ※加盟団体名簿のシートで検索してから入力してください。
I15: 選択した学校名はこちらです。正しいですか？
J16: =VLOOKUP(+$J$13,加盟団体名簿!$A$5:$M$609,8) -> 
E18: 参加団体提出書類
M20: ← 各シートの注意事項をよく読み、必要事項を入力し、申し込み期間内に 提出（印刷・郵送：レターパックプラス（赤））してください。 ※記入（入力）上の注意点については、参加要項をご確認ください。 ※「参加申込書」シートの右側にある 参加申込書 入力完成・保存（青色文字のボタン） を押すと、 学校番号を名前にしたファイルが作成・保存されます。そのExcelファイルを各支部吹奏楽連盟事務局へ 添付ファイルとして送信してください。 （正式書類は、レターパックプラス（赤）での郵送です） 送信の際の添付ファイル名は、５桁の学校番号が付いたExcelファイルになります。 例：○○○○○c.xlsm（５桁の学校番号） 送信の際の件名は、学校名（団体名）・部門 でお願いします。 例：千田中・中学Ａ
B21: 内 容 | E21: 送 付 先 | H21: 送付方法 | J21: 提出期限
B22: ① 参加申込書 | D22: 原本1部 | E22: 各支部吹奏楽連盟事務局 | H22: 郵送 レターパックプラス（赤） | J22: 5月９日（金）
D23: ファイル | H23: メール※ エクセルファイル
B25: ※年度会費 | D25: １０，０００円 | H25: 振込 ※振込受領証のコピーを参加申込書に貼る
B26: ※大会参加費 | D26: =+Q12 -> 
B27: ② 曲目等申込書 | H27: 説明会で提出 | J27: =IF(J7="横浜支部","5月31日（土）",IF(J7="川崎支部","5月31日（土）",IF(J7="相模原支部","5月25日（日）",IF(J7="県南支部","6月3日（火）",IF(J7="県央支部","5月30日（金）",IF(J7="西湘支部","5月29日（木）",IF(J7="湘南支部","5月22日（木）",""))))))) ->  | K27: =IF(E27="横浜支部","横浜",IF(E27="川崎支部","川崎",IF(E27="相模原支部","相模原",IF(E27="県南支部","県南",IF(E27="県央支部","県央",IF(E27="西湘支部","西湘",IF(E27="湘南支部","湘南",""))))))) -> 
B28: ③ 自由曲スコア表紙と第1ページ | J28: =IF(D28="横浜支部","横浜",IF(D28="川崎支部","川崎",IF(D28="相模原支部","相模原",IF(D28="県南支部","県南",IF(D28="県央支部","県央",IF(D28="西湘支部","西湘",IF(D28="湘南支部","湘南",""))))))) ->  | K28: =IF(E28="横浜支部","横浜",IF(E28="川崎支部","川崎",IF(E28="相模原支部","相模原",IF(E28="県南支部","県南",IF(E28="県央支部","県央",IF(E28="西湘支部","西湘",IF(E28="湘南支部","湘南",""))))))) ->  | M28: ← 大会参加費は、参加する部門を選択すると表示されます。
B29: ④ 許諾書（必要な団体のみ） | J29: =IF(D29="横浜支部","横浜",IF(D29="川崎支部","川崎",IF(D29="相模原支部","相模原",IF(D29="県南支部","県南",IF(D29="県央支部","県央",IF(D29="西湘支部","西湘",IF(D29="湘南支部","湘南",""))))))) ->  | K29: =IF(E29="横浜支部","横浜",IF(E29="川崎支部","川崎",IF(E29="相模原支部","相模原",IF(E29="県南支部","県南",IF(E29="県央支部","県央",IF(E29="西湘支部","西湘",IF(E29="湘南支部","湘南",""))))))) ->  | M29: ← 説明会の日程は、支部を選択すると表示されます。説明会場は、各支部の参加要項をご確認ください。
M30: ※レターパックプラス（赤）は、ポストに投函できますが、回収時間を 過ぎるとその日の消印になりませんので、ご注意ください。
B31: ※郵送は、必ずレターパックプラス（赤）でお送りください。簡易書留、普通郵便、特定記録郵便は、受け付けません。
C33: ＜送付先＞
C34: ①～④ | D34: 各支部吹奏楽連盟事務局
D36: 各支部の吹奏楽コンクール参加要項をご確認ください。
D39: ※提出期限は厳守してください。

Sheet 参加申込書
F1: 令和７年度(2025年) | M1: ← 必要事項を入力し、申し込み期間内に提出（印刷・郵送：レターパックプラス（赤））してください。 ※記入（入力）上の注意点については、参加要項をご確認ください。 ・ 期日までに申し込みのない場合は、理由の如何に関わらず受け付けない。 ・ 期日前の申し込みは受け付けない。 ・ 申込書に不備がある場合は、受け付けない。 | AB1: ※この枠内は、触らないでください。
F2: 第26回支部吹奏楽コンクール | X2: 参加申込書の 入力がすべて 終わりましたら 下のボタンを 押してください。⬇ | AB2: =+申し込みについて!J7 -> 0 | AC2: =IF(AB2="横浜支部",1,IF(AB2="川崎支部",2,IF(AB2="相模原支部",3,IF(AB2="県南支部",4,IF(AB2="県央支部",5,IF(AB2="西湘支部",6,IF(AB2="湘南支部",7,""))))))) ->  | AD2: 学校コード | AE2: =+申し込みについて!J13 -> 0
F3: 参 加 申 込 書 | AB3: 1 | AC3: 横浜吹奏楽連盟 理事長 明日山 賢一 様
AB4: 2 | AC4: 川崎吹奏楽連盟 理事長 黒田 学 様
A5: 参 加 支 部 | B5: =+申し込みについて!J7 -> 0 | D5: 参 加 部 門 | E5: =+申し込みについて!J9 -> 0 | G5: 整理番号 （記入しない） | H5: =IF(B5="横浜支部","横浜",IF(B5="川崎支部","川崎",IF(B5="相模原支部","相模原",IF(B5="県南支部","県南",IF(B5="県央支部","県央",IF(B5="西湘支部","西湘",IF(B5="湘南支部","湘南",""))))))) ->  | I5: =IF(E5="中学生の部Ａ部門","中Ａ",IF(E5="中学生の部Ｂ部門","中Ｂ",IF(E5="高校生の部Ａ部門","高Ａ",IF(E5="高校生の部Ｂ部門","高Ｂ","")))) ->  | J5: － | M5: ← 参加支部及び参加部門は、自動で転記されます。 | AB5: 3 | AC5: 相模原吹奏楽連盟 理事長 小磯 滋 様
A6: ふ り が な | B6: =VLOOKUP(+申し込みについて!$J$13,加盟団体名簿!$A$5:$M$609,9) ->  | J6: 参 加 形 態 | M6: ← 合同バンド及び地域バンドの場合は、名簿の提出が必要です。 名簿については、参加要項をご確認ください。 | AB6: 4 | AC6: 県南吹奏楽連盟 理事長 江山 聖彦 様
A7: 団 体 名 | B7: =VLOOKUP(+申し込みについて!$J$13,加盟団体名簿!$A$5:$M$609,8) ->  | J7: =+申し込みについて!J11 -> 0 | AB7: 5 | AC7: 県央吹奏楽連盟 理事長 鈴木 崇 様
A8: 団体所在地 | B8: 〒 | C8: =VLOOKUP(+申し込みについて!$J$13,加盟団体名簿!$A$5:$M$609,10) ->  | D8: =VLOOKUP($J$3,加盟団体名簿!$A$5:$K$609,7) ->  | E8: =VLOOKUP($J$3,加盟団体名簿!$A$5:$K$609,7) ->  | F8: =IF(OR(J7="合同バンド",J7="地域バンド"),"名簿の提出が必要です。","") ->  | G8: =IF(OR(G6>=21,G7>=21),"変更願の提出が必要です。","") ->  | H8: =IF(OR(H6>=21,H7>=21),"変更願の提出が必要です。","") ->  | I8: =IF(OR(I6>=21,I7>=21),"変更願の提出が必要です。","") ->  | J8: =IF(OR(J6>=21,J7>=21),"変更願の提出が必要です。","") -> 変更願の提出が必要です。 | K8: =IF(OR(K6>=21,K7>=21),"変更願の提出が必要です。","") ->  | M8: ← 団体名、ふりがな、団体所在地 （〒、住所、電話番号、FAX番号）は、 自動転記されます。 | AB8: 6 | AC8: 西湘吹奏楽連盟 理事長 三浦 祥玄 様
B9: 住 所 | C9: =VLOOKUP(+申し込みについて!$J$13,加盟団体名簿!$A$5:$M$609,11) ->  | D9: =VLOOKUP($J$3,加盟団体名簿!$A$5:$K$609,7) ->  | E9: =VLOOKUP($J$3,加盟団体名簿!$A$5:$K$609,7) ->  | F9: =VLOOKUP($J$3,加盟団体名簿!$A$5:$K$609,7) ->  | G9: =VLOOKUP($J$3,加盟団体名簿!$A$5:$K$609,7) ->  | H9: =VLOOKUP($J$3,加盟団体名簿!$A$5:$K$609,7) ->  | I9: =VLOOKUP($J$3,加盟団体名簿!$A$5:$K$609,7) ->  | J9: =VLOOKUP($J$3,加盟団体名簿!$A$5:$K$609,7) ->  | K9: =VLOOKUP($J$3,加盟団体名簿!$A$5:$K$609,7) ->  | AB9: 7 | AC9: 湘南吹奏楽連盟 理事長 渡瀬 崇行 様
B10: ＴＥＬ | C10: =VLOOKUP(+申し込みについて!$J$13,加盟団体名簿!$A$5:$M$609,12) ->  | D10: =VLOOKUP($J$3,加盟団体名簿!$A$5:$K$609,7) ->  | E10: =VLOOKUP($J$3,加盟団体名簿!$A$5:$K$609,7) ->  | F10: =VLOOKUP($J$3,加盟団体名簿!$A$5:$K$609,7) ->  | G10: ＦＡＸ | H10: =VLOOKUP(+申し込みについて!$J$13,加盟団体名簿!$A$5:$M$609,13) ->  | I10: =VLOOKUP($J$3,加盟団体名簿!$A$5:$K$609,7) ->  | J10: =VLOOKUP($J$3,加盟団体名簿!$A$5:$K$609,7) ->  | K10: =VLOOKUP($J$3,加盟団体名簿!$A$5:$K$609,7) -> 
A11: 連絡責任者 | B11: ふりがな | G11: ㊞ | H11: 携帯電話番号 | M11: ← 連絡責任者氏名及びふりがなは、姓・名の間にスペース（全角１文字）を入れて入力してください。例：千田 豊 ちだ ゆたか
B12: 氏 名 | M12: ← 携帯電話番号は、半角数字・ハイフンを入れて入力してください。
B13: メールアドレス | M13: ← メールアドレスは、半角英数で入力してください。
A15: 部員数 調査 | B15: コンクール申込時点での 在籍人数を入力してください。 | E15: 中学１年 | F15: 中学２年 | G15: 中学３年 | H15: 高校１年 | I15: 高校２年 | J15: 高校３年 | K15: 合 計 | M15: ← コンクール申込時点での在籍人数を入力してください。コンクールメンバーではありません。
K16: =SUM(E16:J16) -> 0 | M16: ← 人数は、半角数字で入力してください。
A18: 大会役員 調査 | B18: 大会運営にご協力ください。 右の二次元コードを読み取り回答してください。 | M18: ← 参加支部の日程で回答してください。
M19: ← 氏名は、フルネームでご記入ください。姓・名の間にスペース（全角１文字）を入れて 入力してください。例：千田 豊 ちだ ゆたか
A25: 上記のとおり、第26回支部吹奏楽コンクールへの参加を申込みます。
A26: 令和７年（2025年） | E26: 月 | G26: 日 | M26: ← 月 日 を入力してください。
A28: 学校長（団体長） | I28: 職印 | M28: ← 学校長名の入力をお願いします。職印は、印刷後に押印をお願いします。
B30: =VLOOKUP($AC$2,$AB$3:$AD$9,2) ->  | M30: ← 支部理事長名は、自動転記されます。
A34: 年度会費の振込受領証 または 各連盟発行の年度会費領収証 のコピーを貼付けすること。 枠からはみ出しても構いません。 | G34: 大会参加費等の振込受領証の コピーを貼付けすること。 枠からはみ出しても構いません。 | M34: ← 提出は、郵送（レターパックプラス（赤））でお願いします。
A41: ※参加申込書に記入された内容は、コンクール運営業務以外の目的では使用いたしません。
A42: ※必要事項を記入（入力）のうえ、指定された期間内に郵送（レターパックプラス（赤））で
A43: １部（原本Ａ４サイズ）提出すること。
A44: （当日消印有効）（必ず控えをとっておくこと）
A45: ※期間内に申込みのない場合は、理由のいかんに関わらず受け付けない。また、申込み期間前の申込みも受け付け
A46: ない。

Sheet 曲目等申込書
L1: 令和７年度（2025年） | Z1: ← １ 記入（入力）上の注意点については、参加要項をご確認ください。 ２ この書式に必要事項を入力・印刷し、説明会受付に提出してください。 ※メール添付での提出も忘れずに行ってください。 | AK1: ※この枠内は、触らないでください。
L2: 第２６回支部吹奏楽コンクール曲目等申込書 | AK2: あり | AL2: 県内 | AM2: 使用する | AN2: あり | AO2: 上手袖 | AP2: Ⅰ 祝い唄と踊り唄による幻想曲 | AQ2: 販売 | AR2: ア
AK3: なし | AL3: 県外 | AM3: 使用しない | AN3: なし | AO3: 下手袖 | AP3: Ⅱ ステップ、スキップ、ノンストップ | AQ3: レンタル | AR3: イ
AO4: その他 | AP4: Ⅲ マーチ「メモリーズ・リフレイン」 | AQ4: 未出版 | AR4: ウ
A5: =+" "&+参加申込書!B30 ->  | N5: 令和７年（2025年） | T5: 月 | W5: 日 | Z5: ← 月 日 を入力してください。 | AK5: 学校コード | AL5: =+申し込みについて!J13 -> 0 | AP5: Ⅳ Rhapsody ～ Eclipse | AR5: エ
AR6: オ
A7: 部 門 | D7: =+申し込みについて!J9 -> 0 | M7: 整理番号 （記入しない） | R7: =+参加申込書!I5 ->  | S7: =IF(L7="小学生","小",IF(L7="大学","大",IF(L7="職場・一般","職・一",""))) ->  | T7: =IF(#REF!="小学生","小",IF(#REF!="大学","大",IF(#REF!="職場・一般","職・一",""))) ->  | U7: － | AA7: ← 団体名、ふりがな、団体所在地 （〒、住所、電話番号、FAX番号）、 連絡責任者（氏名、ふりがな、 携帯電話番号、メールアドレス）は、 自動転記されます。 連絡責任者㊞は、印刷後に忘れずに 押印してください。
A8: ふ り が な | D8: =+参加申込書!B6 ->  | R8: 参加形態 | AI8: 曲目等申込書の入力がすべて終わりましたら下のボタンを押してください。⬇
A9: 団 体 名 | D9: =+参加申込書!B7 ->  | R9: =+申し込みについて!J11 -> 0
A10: 団体所在地 | D10: 〒 | F10: =+参加申込書!C8 -> 
D11: =+参加申込書!C9 -> 
D12: ＴＥＬ | F12: =+参加申込書!C10 ->  | M12: ＦＡＸ | O12: =+参加申込書!H10 -> 
A13: ふりがな | D13: =+参加申込書!C11 -> 0 | M13: ㊞ | O13: 携帯電話番号
A14: 連絡責任者 | D14: =+参加申込書!C12 -> 0 | O14: =+参加申込書!H12 -> 0
D15: メールアドレス | H15: =+参加申込書!D13 -> 0
A16: ふ り が な | M16: 出演者数 （指揮者を除く） | V16: 名 | Z16: ← 出演者数（指揮者を除く）は、半角数字で入力してください。
A17: 指揮者名 | Z17: ← ピアノ使用（有無）は、プルダウンメニューから選択してください。
A18: 他団体の指揮 | H18: ありの場合 → | M18: ピアノ | Z18: ← 他団体の指揮 については、プルダウンメニューから選択してください。
A19: 課 題 曲 | Z19: ← 課題曲 Ａ部門は、プルダウンメニューから選択してください。小学生及びＢ部門は、空欄のままにしてください。
A20: 自 由 曲 | B20: 曲 名 | D20: ふりがな | Z20: ← 演奏曲は、演奏順に（組曲、メドレー等も）すべて記入してください。提出後の変更はできません。
D21: 邦 文
D22: Spelling | Z22: ← Spellingは、半角英数で入力してください。
B23: 作 曲 者 | D23: ふりがな | L23: Spelling | Z23: ← Spellingは、半角英数で入力してください。邦人の場合は、姓・名の順で入力してください。例：CHIDA Yutaka
D24: 邦 文 | L24: 生 没 年 | Q24: 年 | R24: ～ | W24: 年 | Z24: ← 生没年は、半角数字で入力してください。現在も存命の場合は、存命と入力してください。不明の場合は、不明と入力してください。
B25: 編 曲 者 | D25: ふりがな | L25: Spelling | Z25: ← Spellingは、半角英数で入力してください。邦人の場合は、姓・名の順で入力してください。例：CHIDA Yutaka
D26: 邦 文 | L26: =IF(OR(T27="レンタル",T27="未出版"),"許諾書の提出が必要です。","") ->  | M26: =IF(OR(Q24>=21,Q25>=21),"変更願の提出が必要です。","") -> 変更願の提出が必要です。 | N26: 変更願の提出が必要です。 | S26: 変更願の提出が必要です。 | V26: 変更願の提出が必要です。
B27: 使用楽譜 | D27: 出版社名 | Z27: ← 使用楽譜の右端の記入欄は、プルダウンメニューから選択してください。
A28: 使用 打楽器 一覧 （ハープを含む） | R28: 搬入 補助員 | X28: 名 | Z28: ← 楽器名は、半角英数で楽器名略号一覧のシートを参照し、入力してください。楽器名略号一覧にない楽器名は、わかりやすく入力してください。 ハープを使用する場合も、この欄に記入してください。 ← コンクールの運営がスムーズに行えるよう、打楽器等搬入補助員を必ずつけることとする。ただし、その人数は20名以内とする、万が一、搬入 補助員を増員せざるを得ない場合は、各支部理事長から指定の変更願にその理由と増員数を記入して、指定期日までに支部理事長を通して県吹 奏楽連盟に申請（必着）し、県理事長の承認を得ることとする。ただし、承認されない場合があることを予め了承しておくこと。
R29: =IF(OR(V27>=21,V28>=21),"変更願の提出が必要です。","") ->  | Z29: ← 搬入補助員数は、半角数字で入力してください。２１名以上の場合は、事前に「変更願」の提出が必要です。各支部理事長にお問い合わせください。
A30: オフステージ申請 | D30: ※「あり」の場合 右のア～ウに記入 | H30: ア 回数 | K30: 回 | L30: イ 楽器 | T30: 人数 | X30: 名 | Z30: ← オフステージ申請（左端欄）は、プルダウンメニューから選択してください。オフステージ「あり」の場合は、右側のア・イ・ウのそれぞれの項目を記入してください。
H31: ウ 演奏場所 | M31: その他の場合は、 場所を記入→ | Z31: ← ウ「演奏場所」の記入欄は、プルダウンメニューから選択してください。「その他」を選択した場合は、右の欄に場所を入力してください。
A32: 著作権 について | D32: ※演奏許諾を要しないもの | H32: ア 出版されている楽譜及び編曲楽譜で，わが国で演奏許諾を得られているものである。
H33: イ 各国が定める作曲者の著作権保護期間を経過，またはすでに50年の保護期間が過ぎている
A34: 右のア～オのいずれか該当する記号を選択してください。↓ | H34: （2018.12.30以前）ため編曲の承諾を要しないものである。
D35: ※演奏許諾を要するもの | H35: ウ 著作権の存在する曲を編曲したが，著作権者に編曲・演奏許諾を得ているものである。 | Z35: ← 著作権について（左端欄）は、プルダウンメニューから選択してください。
H36: エ レンタル楽譜等で，演奏許諾を得ているものである。
H37: オ 自楽団のための委嘱作品あるいは編曲作品で未出版だが，演奏許諾を得ているものである。
D38: 許諾先 | O38: =IF(OR(A37="ウ",OR(A37="エ",OR(A37="オ"))),"許諾書（コピー）の提出（A4）が必要です。","") ->  | P38: =IF(OR(P35>=21,P36>=21,P37>=21),"変更願の提出が必要です。","") ->  | Z38: ← ウ・エ・オの場合は、許諾先を記入してください。許諾書（コピー可）をこの曲目等申込書と一緒に必ず提出してください。
A39: ○記入（入力）された内容は、コンクール運営業務以外の目的では使用いたしません。（はっきりと正確に記入（入力）すること）
A40: ※必要事項を記入（入力）のうえ、説明会当日の受付にて１部（原本Ａ４サイズ）を提出すること。
A41: ・提出後の曲目変更は認めません。必ず控え（コピー）をとっておくこと。
A42: ・自由曲スコアの表紙と第１ページ（作曲者、編曲者、出版社それぞれの和文及び欧文が確認できるページ。
A43: 併せて、組曲等複数の楽章を演奏する場合は、演奏するそれぞれの楽章の和文、欧文が確認できるページ
A44: （または、各楽章のスコアの第１ページ目）のコピー（Ａ４サイズ）も提出すること。
A45: 必ず団体名を記入すること。
A46: ・演奏許諾書（Ａ４サイズ）等が必要なものを同封すること。
A47: ※期間内に申込みのない場合は、理由のいかんに関わらず受け付けない。また、期間前の申込みも受け付けない。

Sheet 楽器名略号一覧
A1: 楽器名略号一覧
A2: 略 号 | B2: 楽 器 名
A3: Timp. | B3: Timpani
A4: Perc. | B4: Percussion
A5: S.Dr. | B5: Snare Drum
A6: B.Dr. | B6: Bass Drum
A7: Glock. | B7: Glockenspiel
A8: Mari. | B8: Marimba
A9: Xyl. | B9: Xylophone
A10: Vib. | B10: Vibraphone
A13: 以下の楽器は、昨年度使用された主なものです。参考にしてください。
A14: C.Cym. | B14: Crash cymbal
A15: R.Cym. | B15: Ride Cymbal
A16: S.Cym. | B16: Suspended Cymbal
A17: Finger Cym. | B17: Finger Cymbal
A18: Cym. | B18: Cymbal
A19: Splash Cym. | B19: Splash Cymbal
A20: H-H.Cym. | B20: Hi-Hat.Cymbal
A21: Chinese Cym. | B21: Chinese Cymbal
A22: Sizzle Cym. | B22: Sizzle Cymbal
A23: Bongo | B23: Bongo
A24: Cast. | B24: Castanet
A25: Cabasa | B25: Cabasa
A26: Chime | B26: Concert chime
A27: China Gong | B27: China Gong
A28: Claves | B28: Claves
A29: Conga | B29: Conga
A30: C.Bell | B30: Cowbell
A31: Drs | B31: Drums（Drum Set）
A32: F.Tom | B32: F.Tom
A33: Field Drum | B33: Field Drum
A34: T.Drum | B34: Tenor Drum
A35: Flexatone | B35: Flexatone
A36: Glass Harp | B36: Glass Harp
A37: Gong | B37: Gong（銅鑼、ドラ）
A38: Tam-Tam | B38: Gong（銅鑼、ドラ）
A39: Guiro | B39: Guiro
A40: Maracas | B40: Maracas
A41: Ocean Drum | B41: Ocean Drum
A42: Picc.S.Dr. | B42: Piccol Snare Drum
A43: Rain Stick | B43: Rain Stick
A44: Ratchet | B44: Ratchet
A45: Shaker | B45: Shaker
A46: Slapstick | B46: Slapstick
A47: Tamb. | B47: Tambarine
A48: T.Block | B48: Temple Block（木魚）
A49: Timbales | B49: Timbales
A50: Tom-Tom | B50: Tom-Tom
A51: （3）Toms | B51: Toms
A52: Tri. | B52: Tri.angle
A53: W.Chime | B53: Wind Chime
A54: W.Block | B54: Wood Block
A55: ﾁｬｲﾅｺﾞﾝｸﾞ | B55: ﾁｬｲﾅｺﾞﾝｸﾞ
A56: ﾁｬﾝﾁｷ | B56: ﾁｬﾝﾁｷ
A57: 和太鼓 | B57: 和太鼓

Sheet 加盟団体名簿
A1: 1 | B1: 2 | C1: 3 | D1: 4 | E1: 5 | F1: 6 | G1: 7 | H1: 8 | I1: 9 | J1: 10 | K1: 11 | L1: 12 | M1: 13
A2: 学校 コードはこちら⬇ | B2: 支部でフィルター検索してください。 | I2: 令和６年度のデータで作成しています。変更等がある場合は、訂正をお願いします。
G3: 令和６年度 神奈川県吹奏楽連盟 加盟団体名簿
B4: 支部 | C4: 支部 コード | D4: 校種 | E4: 部門 コード | F4: 団体番号 | G4: No | H4: 団 体 名 | I4: ふりがな | J4: 〒 | K4: 所 在 地 | L4: TEL | M4: FAX
A5: =+C5*10000+E5*1000+F5 -> 12001 | B5: 横浜 | C5: 1 | D5: 中学校 | E5: 2 | F5: 1 | G5: 1 | H5: 横浜市立市場中学校 | I5: よこはましりついちばちゅうがっこう | J5: 230-0024 | K5: 横浜市鶴見区市場下町 1-1 | L5: 045-501-4125 | M5: 045-507-0074
A6: 12002 | B6: 横浜 | C6: 1 | D6: 中学校 | E6: 2 | F6: 2 | G6: 2 | H6: 横浜市立潮田中学校 | I6: よこはましりつうしおだちゅうがっこう | J6: 230-0037 | K6: 横浜市鶴見区向井町 4-83 | L6: 045-521-3535 | M6: 045-507-0079
A7: 12003 | B7: 横浜 | C7: 1 | D7: 中学校 | E7: 2 | F7: 3 | G7: 3 | H7: 横浜市立上の宮中学校 | I7: よこはましりつかみのみやちゅうがっこう | J7: 230-0075 | K7: 横浜市鶴見区上の宮 1-26-33 | L7: 045-582-8801 | M7: 045-585-9914
A8: 12004 | B8: 横浜 | C8: 1 | D8: 中学校 | E8: 2 | F8: 4 | G8: 4 | H8: 横浜市立末吉中学校 | I8: よこはましりつすえよしちゅうがっこう | J8: 230-0012 | K8: 横浜市鶴見区下末吉 6-13-1 | L8: 045-581-0813 | M8: 045-585-9497
A9: 12005 | B9: 横浜 | C9: 1 | D9: 中学校 | E9: 2 | F9: 5 | G9: 5 | H9: 横浜市立鶴見中学校 | I9: よこはましりつつるみちゅうがっこう | J9: 230-0051 | K9: 横浜市鶴見区鶴見中央 3-14-1 | L9: 045-501-2397 | M9: 045-507-0083
A10: 12006 | B10: 横浜 | C10: 1 | D10: 中学校 | E10: 2 | F10: 6 | G10: 6 | H10: 横浜市立寺尾中学校 | I10: よこはましりつてらおちゅうがっこう | J10: 230-0074 | K10: 横浜市鶴見区北寺尾 3-13-1 | L10: 045-571-4102 | M10: 045-585-9499
A11: 12007 | B11: 横浜 | C11: 1 | D11: 中学校 | E11: 2 | F11: 7 | G11: 7 | H11: 横浜市立生麦中学校 | I11: よこはましりつなまむぎちゅうがっこう | J11: 230-0078 | K11: 横浜市鶴見区岸谷 2-1-1 | L11: 045-581-3255 | M11: 045-585-9904
A12: 12008 | B12: 横浜 | C12: 1 | D12: 中学校 | E12: 2 | F12: 8 | G12: 8 | H12: 横浜市立矢向中学校 | I12: よこはましりつやこうちゅうがっこう | J12: 230-0001 | K12: 横浜市鶴見区矢向 1-8-24 | L12: 045-581-4131 | M12: 045-581-9906
A13: 12009 | B13: 横浜 | C13: 1 | D13: 中学校 | E13: 2 | F13: 9 | G13: 9 | H13: 横浜市立浦島丘中学校 | I13: よこはましりつうらしまおかちゅうがっこう | J13: 221-0072 | K13: 横浜市神奈川区白幡東町 27-1 | L13: 045-421-6281 | M13: 045-431-2461
A14: 12010 | B14: 横浜 | C14: 1 | D14: 中学校 | E14: 2 | F14: 10 | G14: 10 | H14: 横浜市立神奈川中学校 | I14: よこはましりつかながわちゅうがっこう | J14: 221-0004 | K14: 横浜市神奈川区西大口 141 | L14: 045-431-4770 | M14: 045-431-4373
A15: 12011 | B15: 横浜 | C15: 1 | D15: 中学校 | E15: 2 | F15: 11 | G15: 11 | H15: 横浜市立栗田谷中学校 | I15: よこはましりつくりたやちゅうがっこう | J15: 221-0804 | K15: 横浜市神奈川区栗田谷 3-1 | L15: 045-481-3767 | M15: 045-481-4373
A16: 12012 | B16: 横浜 | C16: 1 | D16: 中学校 | E16: 2 | F16: 12 | G16: 12 | H16: 横浜市立菅田中学校 | I16: よこはましりつすげたちゅうがっこう | J16: 221-0864 | K16: 横浜市神奈川区菅田町 2017 | L16: 045-472-2338 | M16: 045-472-3351
A17: 12013 | B17: 横浜 | C17: 1 | D17: 中学校 | E17: 2 | F17: 13 | G17: 13 | H17: 横浜市立錦台中学校 | I17: よこはましりつにしきだいちゅうがっこう | J17: 221-0001 | K17: 横浜市神奈川区西寺尾 3-10-1 | L17: 045-401-3644 | M17: 045-431-0244
A18: 12014 | B18: 横浜 | C18: 1 | D18: 中学校 | E18: 2 | F18: 14 | G18: 14 | H18: 横浜市立松本中学校 | I18: よこはましりつまつもとちゅうがっこう | J18: 221-0852 | K18: 横浜市神奈川区三ツ沢下町 30-1 | L18: 045-323-2580 | M18: 045-320-1034
A19: 12015 | B19: 横浜 | C19: 1 | D19: 中学校 | E19: 2 | F19: 15 | G19: 15 | H19: 横浜市立六角橋中学校 | I19: よこはましりつろっかくばしちゅうがっこう | J19: 221-0802 | K19: 横浜市神奈川区六角橋 5-33-1 | L19: 045-481-3521 | M19: 045-481-2997
A20: 12016 | B20: 横浜 | C20: 1 | D20: 中学校 | E20: 2 | F20: 16 | G20: 16 | H20: 横浜市立老松中学校 | I20: よこはましりつおいまつちゅうがっこう | J20: 220-0032 | K20: 横浜市西区老松町 27 | L20: 045-241-5121 | M20: 045-253-7068
A21: 12017 | B21: 横浜 | C21: 1 | D21: 中学校 | E21: 2 | F21: 17 | G21: 17 | H21: 横浜市立西中学校 | I21: よこはましりつにしちゅうがっこう | J21: 220-0046 | K21: 横浜市西区西戸部町 3-286 | L21: 045-231-0153 | M21: 045-253-7073
A22: 12018 | B22: 横浜 | C22: 1 | D22: 中学校 | E22: 2 | F22: 18 | G22: 18 | H22: 横浜市立岡野中学校 | I22: よこはましりつおかのちゅうがっこう | J22: 220-0073 | K22: 横浜市西区岡野 2-14-1 | L22: 045-311-3210 | M22: 045-311-9968
A23: 12019 | B23: 横浜 | C23: 1 | D23: 中学校 | E23: 2 | F23: 19 | G23: 19 | H23: 横浜市立軽井沢中学校 | I23: よこはましりつかるいざわちゅうがっこう | J23: 220-0001 | K23: 横浜市西区北軽井沢 24 | L23: 045-311-2523 | M23: 045-312-4849
A24: 12020 | B24: 横浜 | C24: 1 | D24: 中学校 | E24: 2 | F24: 20 | G24: 20 | H24: 横浜市立岩井原中学校 | I24: よこはましりついわいはらちゅうがっこう | J24: 240-0023 | K24: 横浜市保土ケ谷区岩井町 308 | L24: 045-731-5880 | M24: 045-713-4022
A25: 12021 | B25: 横浜 | C25: 1 | D25: 中学校 | E25: 2 | F25: 21 | G25: 21 | H25: 横浜市立大鳥中学校 | I25: よこはましりつおおとりちゅうがっこう | J25: 231-0821 | K25: 横浜市中区本牧原 22-1 | L25: 045-621-4500 | M25: 045-622-7549
A26: 12022 | B26: 横浜 | C26: 1 | D26: 中学校 | E26: 2 | F26: 22 | G26: 22 | H26: 横浜市立仲尾台中学校 | I26: よこはましりつなかおだいちゅうがっこう | J26: 231-0839 | K26: 横浜市中区仲尾台 23 | L26: 045-621-9600 | M26: 045-622-8654
A27: 12023 | B27: 横浜 | C27: 1 | D27: 中学校 | E27: 2 | F27: 23 | G27: 23 | H27: 横浜市立本牧中学校 | I27: よこはましりつほんもくちゅうがっこう | J27: 231-0827 | K27: 横浜市中区本牧和田 32-1 | L27: 045-623-7094 | M27: 045-623-0129
A28: 12024 | B28: 横浜 | C28: 1 | D28: 中学校 | E28: 2 | F28: 24 | G28: 24 | H28: 横浜市立港中学校 | I28: よこはましりつみなとちゅうがっこう | J28: 231-0023 | K28: 横浜市中区山下町 241 | L28: 045-681-3618 | M28: 045-663-2549
A29: 12025 | B29: 横浜 | C29: 1 | D29: 中学校 | E29: 2 | F29: 25 | G29: 25 | H29: 横浜市立横浜吉田中学校 | I29: よこはましりつよこはまよしだちゅうがっこう | J29: 231-0047 | K29: 横浜市中区羽衣町 3-84 | L29: 045-261-0905 | M29: 045-253-7085
A30: 12026 | B30: 横浜 | C30: 1 | D30: 中学校 | E30: 2 | F30: 26 | G30: 26 | H30: 横浜市立共進中学校 | I30: よこはましりつきょうしんちゅうがっこう | J30: 232-0045 | K30: 横浜市南区東蒔田町 1-5 | L30: 045-711-5091 | M30: 045-713-9794
A31: 12027 | B31: 横浜 | C31: 1 | D31: 中学校 | E31: 2 | F31: 27 | G31: 27 | H31: 横浜市立永田中学校 | I31: よこはましりつながたちゅうがっこう | J31: 232-0075 | K31: 横浜市南区永田みなみ台 7-1 | L31: 045-715-5511 | M31: 045-713-8492
A32: 12028 | B32: 横浜 | C32: 1 | D32: 中学校 | E32: 2 | F32: 28 | G32: 28 | H32: 横浜市立藤の木中学校 | I32: よこはましりつふじのきちゅうがっこう | J32: 232-0061 | K32: 横浜市南区大岡 4-44-1 | L32: 045-714-2817 | M32: 045-713-7994
A33: 12029 | B33: 横浜 | C33: 1 | D33: 中学校 | E33: 2 | F33: 29 | G33: 29 | H33: 横浜市立平楽中学校 | I33: よこはましりつへいらくちゅうがっこう | J33: 232-0035 | K33: 横浜市南区平楽 1 | L33: 045-261-4213 | M33: 045-252-3692
A34: 12030 | B34: 横浜 | C34: 1 | D34: 中学校 | E34: 2 | F34: 30 | G34: 30 | H34: 横浜市立蒔田中学校 | I34: よこはましりつまいたちゅうがっこう | J34: 232-0018 | K34: 横浜市南区花之木町 2-45 | L34: 045-711-2231 | M34: 045-713-9743
A35: 12031 | B35: 横浜 | C35: 1 | D35: 中学校 | E35: 2 | F35: 31 | G35: 31 | H35: 横浜市立南中学校 | I35: よこはましりつみなみちゅうがっこう | J35: 232-0066 | K35: 横浜市南区六ツ川 1-14 | L35: 045-712-9800 | M35: 045-713-9729
A36: 12032 | B36: 横浜 | C36: 1 | D36: 中学校 | E36: 2 | F36: 32 | G36: 32 | H36: 横浜市立南が丘中学校 | I36: よこはましりつみなみがおかちゅうがっこう | J36: 232-0064 | K36: 横浜市南区別所 3-6-1 | L36: 045-711-1101 | M36: 045-713-9742
A37: 12033 | B37: 横浜 | C37: 1 | D37: 中学校 | E37: 2 | F37: 33 | G37: 33 | H37: 横浜市立六ツ川中学校 | I37: よこはましりつむつかわちゅうがっこう | J37: 232-0066 | K37: 横浜市南区六ツ川 3-81-11 | L37: 045-715-3075 | M37: 045-713-8149
A38: 12034 | B38: 横浜 | C38: 1 | D38: 中学校 | E38: 2 | F38: 34 | G38: 34 | H38: 横浜市立新井中学校 | I38: よこはましりつあらいちゅうがっこう | J38: 240-0053 | K38: 横浜市保土ケ谷区新井町 43-7 | L38: 045-382-1477 | M38: 045-381-7429
A39: 12035 | B39: 横浜 | C39: 1 | D39: 中学校 | E39: 2 | F39: 35 | G39: 35 | H39: 横浜市立岩崎中学校 | I39: よこはましりついわさきちゅうがっこう | J39: 240-0011 | K39: 横浜市保土ケ谷区桜ケ丘 2-6-1 | L39: 045-331-3663 | M39: 045-331-5593
A40: 12036 | B40: 横浜 | C40: 1 | D40: 中学校 | E40: 2 | F40: 36 | G40: 36 | H40: 横浜市立上菅田中学校 | I40: よこはましりつかみすげたちゅうがっこう | J40: 240-0051 | K40: 横浜市保土ケ谷区上菅田町 780 | L40: 045-381-7161 | M40: 045-381-7424
A41: 12037 | B41: 横浜 | C41: 1 | D41: 中学校 | E41: 2 | F41: 37 | G41: 37 | H41: 横浜市立橘中学校 | I41: よこはましりつたちばなちゅうがっこう | J41: 240-0044 | K41: 横浜市保土ケ谷区仏向町 1167-2 | L41: 045-335-5991 | M41: 045-331-5725
A42: 12038 | B42: 横浜 | C42: 1 | D42: 中学校 | E42: 2 | F42: 38 | G42: 38 | H42: 横浜市立保土ケ谷中学校 | I42: よこはましりつほどがやちゅうがっこう | J42: 240-0066 | K42: 横浜市保土ケ谷区釜台町 3-1 | L42: 045-331-8521 | M42: 045-331-5612
A43: 12039 | B43: 横浜 | C43: 1 | D43: 中学校 | E43: 2 | F43: 39 | G43: 39 | H43: 横浜市立宮田中学校 | I43: よこはましりつみやたちゅうがっこう | J43: 240-0002 | K43: 横浜市保土ケ谷区宮田町 1-100 | L43: 045-331-5288 | M43: 045-331-5718
A44: 12040 | B44: 横浜 | C44: 1 | D44: 中学校 | E44: 2 | F44: 40 | G44: 40 | H44: 横浜市立境木中学校 | I44: よこはましりつさかいぎちゅうがっこう | J44: 244-0802 | K44: 横浜市戸塚区平戸 3-48-2 | L44: 045-822-8626 | M44: 045-826-3826
A45: 12041 | B45: 横浜 | C45: 1 | D45: 中学校 | E45: 2 | F45: 41 | G45: 41 | H45: 横浜市立旭中学校 | I45: よこはましりつあさひちゅうがっこう | J45: 241-0817 | K45: 横浜市旭区今宿 2-40-1 | L45: 045-364-5112 | M45: 045-364-51１7
A46: 12042 | B46: 横浜 | C46: 1 | D46: 中学校 | E46: 2 | F46: 42 | G46: 42 | H46: 横浜市立上白根北中学校 | I46: よこはましりつかみしらねきたちゅうがっこう | J46: 241-0002 | K46: 横浜市旭区上白根 2-47-1 | L46: 045-955-1131 | M46: 045-951-1354
A47: 12043 | B47: 横浜 | C47: 1 | D47: 中学校 | E47: 2 | F47: 43 | G47: 43 | H47: 横浜市立今宿中学校 | I47: よこはましりついまじゅくちゅうがっこう | J47: 241-0032 | K47: 横浜市旭区今宿東町 825 | L47: 045-953-0001 | M47: 045-951-1346
A48: 12044 | B48: 横浜 | C48: 1 | D48: 中学校 | E48: 2 | F48: 44 | G48: 44 | H48: 横浜市立希望が丘中学校 | I48: よこはましりつきぼうがおかちゅうがっこう | J48: 241‐0826 | K48: 横浜市旭区東希望が丘 118 | L48: 045-391-0378 | M48: 045-391-0377
A49: 12045 | B49: 横浜 | C49: 1 | D49: 中学校 | E49: 2 | F49: 45 | G49: 45 | H49: 横浜市立都岡中学校 | I49: よこはましりつつおかちゅうがっこう | J49: 241-0804 | K49: 横浜市旭区川井宿町 32-2 | L49: 045-953-2301 | M49: 045-951-1338
A50: 12046 | B50: 横浜 | C50: 1 | D50: 中学校 | E50: 2 | F50: 46 | G50: 46 | H50: 横浜市立鶴ケ峯中学校 | I50: よこはましりつつるがみねちゅうがっこう | J50: 241-0021 | K50: 横浜市旭区鶴ケ峰本町 3-28-1 | L50: 045-951-2327 | M50: 045-951-1321
A51: 12047 | B51: 横浜 | C51: 1 | D51: 中学校 | E51: 2 | F51: 47 | G51: 47 | H51: 横浜市立本宿中学校 | I51: よこはましりつほんじゅくちゅうがっこう | J51: 241-0011 | K51: 横浜市旭区川島町 1979 | L51: 045-373-0529 | M51: 045-381-7434
A52: 12048 | B52: 横浜 | C52: 1 | D52: 中学校 | E52: 2 | F52: 48 | G52: 48 | H52: 横浜市立万騎が原中学校 | I52: よこはましりつまきがはらちゅうがっこう | J52: 241-0836 | K52: 横浜市旭区万騎が原 31 | L52: 045-391-5514 | M52: 045-391-5537
A53: 12049 | B53: 横浜 | C53: 1 | D53: 中学校 | E53: 2 | F53: 49 | G53: 49 | H53: 横浜市立南希望が丘中学校 | I53: よこはましりつみなみきぼうがおかちゅうがっこう | J53: 241-0824 | K53: 横浜市旭区南希望が丘 108-8 | L53: 045-364-5171 | M53: 045-364-5183
A54: 12050 | B54: 横浜 | C54: 1 | D54: 中学校 | E54: 2 | F54: 50 | G54: 50 | H54: 横浜市立若葉台中学校 | I54: よこはましりつわかばだいちゅうがっこう | J54: 241-0801 | K54: 横浜市旭区若葉台 1-13-1 | L54: 045-921-1060 | M54: 045-922-5961
A55: 12051 | B55: 横浜 | C55: 1 | D55: 中学校 | E55: 2 | F55: 51 | G55: 51 | H55: 横浜市立泉が丘中学校 | I55: よこはましりついずみがおかちゅうがっこう | J55: 245-0022 | K55: 横浜市泉区泉が丘 3-29-1 | L55: 045-802-8797 | M55: 045-805-4685
A56: 12052 | B56: 横浜 | C56: 1 | D56: 中学校 | E56: 2 | F56: 52 | G56: 52 | H56: 横浜市立いずみ野中学校 | I56: よこはましりついずみのちゅうがっこう | J56: 245-0016 | K56: 横浜市泉区和泉町 6201 | L56: 045-804-6540 | M56: 045-803-5895
A57: 12053 | B57: 横浜 | C57: 1 | D57: 中学校 | E57: 2 | F57: 53 | G57: 53 | H57: 横浜市立岡津中学校 | I57: よこはましりつおかつちゅうがっこう | J57: 245-0003 | K57: 横浜市泉区岡津町 2346 | L57: 045-811-4214 | M57: 045-812-9104
A58: 12054 | B58: 横浜 | C58: 1 | D58: 中学校 | E58: 2 | F58: 54 | G58: 54 | H58: 横浜市立上飯田中学校 | I58: よこはましりつかみいいだちゅうがっこう | J58: 245-0018 | K58: 横浜市泉区上飯田町 2254 | L58: 045-804-0444 | M58: 045-803-5649
A59: 12055 | B59: 横浜 | C59: 1 | D59: 中学校 | E59: 2 | F59: 55 | G59: 55 | H59: 横浜市立中田中学校 | I59: よこはましりつなかだちゅうがっこう | J59: 245-0012 | K59: 横浜市泉区中田北 2-20-1 | L59: 045-803-3771 | M59: 045-805-4698
A60: 12056 | B60: 横浜 | C60: 1 | D60: 中学校 | E60: 2 | F60: 56 | G60: 56 | H60: 横浜市立中和田中学校 | I60: よこはましりつなかわだちゅうがっこう | J60: 245-0024 | K60: 横浜市泉区和泉中央北 2-5-1 | L60: 045-802-1302 | M60: 045-805-4403
A61: 12057 | B61: 横浜 | C61: 1 | D61: 中学校 | E61: 2 | F61: 57 | G61: 57 | H61: 横浜市立領家中学校 | I61: よこはましりつりょうけちゅうがっこう | J61: 245-0004 | K61: 横浜市泉区領家 4-3-1 | L61: 045-811-6641 | M61: 045-812-9645
A62: 12058 | B62: 横浜 | C62: 1 | D62: 中学校 | E62: 2 | F62: 58 | G62: 58 | H62: 横浜市立義務教育学校 緑園学園 | I62: よこはましりつぎむきょういくがっこう りょくえんがくえん | J62: 245-0002 | K62: 横浜市泉区緑園 5-28 | L62: 045-811-6030 | M62: 045-0811-0744
A63: 12059 | B63: 横浜 | C63: 1 | D63: 中学校 | E63: 2 | F63: 59 | G63: 59 | H63: 横浜市立汲沢中学校 | I63: よこはましりつぐみさわちゅうがっこう | J63: 245-0062 | K63: 横浜市戸塚区汲沢町 550-2 | L63: 045-861-5303 | M63: 045-800-0970
A64: 12060 | B64: 横浜 | C64: 1 | D64: 中学校 | E64: 2 | F64: 60 | G64: 60 | H64: 横浜市立東野中学校 | I64: よこはましりつあずまのちゅうがっこう | J64: 246-0012 | K64: 横浜市瀬谷区東野 130 | L64: 045-302-1116 | M64: 045-302-1115
A65: 12061 | B65: 横浜 | C65: 1 | D65: 中学校 | E65: 2 | F65: 61 | G65: 61 | H65: 横浜市立下瀬谷中学校 | I65: よこはましりつしもせやちゅうがっこう | J65: 246-0035 | K65: 横浜市瀬谷区下瀬谷 2-16-7 | L65: 045-301-4508 | M65: 045-301-4592
A66: 12062 | B66: 横浜 | C66: 1 | D66: 中学校 | E66: 2 | F66: 62 | G66: 62 | H66: 横浜市立瀬谷中学校 | I66: よこはましりつせやちゅうがっこう | J66: 246-0014 | K66: 横浜市瀬谷区中央 5-41 | L66: 045-301-0096 | M66: 045-301-0099
A67: =+C67*10000+E67*1000+F67 -> 12063 | B67: 横浜 | C67: 1 | D67: 中学校 | E67: 2 | F67: 63 | G67: 63 | H67: 横浜市立原中学校 | I67: よこはましりつはらちゅうがっこう | J67: 246-0025 | K67: 横浜市瀬谷区阿久和西 2-1-6 | L67: 045-391-0461 | M67: 045-391-0471
A68: 12064 | B68: 横浜 | C68: 1 | D68: 中学校 | E68: 2 | F68: 64 | G68: 64 | H68: 横浜市立南瀬谷中学校 | I68: よこはましりつみなみせやちゅうがっこう | J68: 246-0032 | K68: 横浜市瀬谷区南台 2-2-8 | L68: 045-301-5131 | M68: 045-301-5125
A69: 12065 | B69: 横浜 | C69: 1 | D69: 中学校 | E69: 2 | F69: 65 | G69: 65 | H69: 横浜市立上永谷中学校 | I69: よこはましりつかみながやちゅうがっこう | J69: 233-0012 | K69: 横浜市港南区上永谷 4-12-14 | L69: 045-842-3939 | M69: 045-847-3496
A70: 12066 | B70: 横浜 | C70: 1 | D70: 中学校 | E70: 2 | F70: 66 | G70: 66 | H70: 横浜市立港南中学校 | I70: よこはましりつこうなんちゅうがっこう | J70: 233-0004 | K70: 横浜市港南区港南中央通 6-1 | L70: 045-842-2355 | M70: 045-848-2694
A71: 12067 | B71: 横浜 | C71: 1 | D71: 中学校 | E71: 2 | F71: 67 | G71: 67 | H71: 横浜市立港南台第一中学校 | I71: よこはましりつこうなんだいだいいちちゅうがっこう | J71: 234-0054 | K71: 横浜市港南区港南台 6-6-1 | L71: 045-832-0020 | M71: 045-835-2096
A72: 12068 | B72: 横浜 | C72: 1 | D72: 中学校 | E72: 2 | F72: 68 | G72: 68 | H72: 横浜市立笹下中学校 | I72: よこはましりつささげちゅうがっこう | J72: 233-0003 | K72: 横浜市港南区港南 5-8-1 | L72: 045-841-1333 | M72: 045-847-3098
A73: 12069 | B73: 横浜 | C73: 1 | D73: 中学校 | E73: 2 | F73: 69 | G73: 69 | H73: 横浜市立芹が谷中学校 | I73: よこはましりつせりがやちゅうがっこう | J73: 233-0006 | K73: 横浜市港南区芹が谷 2－7－1 | L73: 045-823-7551 | M73: 045-826-3010
A74: 12070 | B74: 横浜 | C74: 1 | D74: 中学校 | E74: 2 | F74: 70 | G74: 70 | H74: 横浜市立東永谷中学校 | I74: よこはましりつひがしながやちゅうがっこう | J74: 233-0011 | K74: 横浜市港南区東永谷 2-14-7 | L74: 045-823-9901 | M74: 045-826-3113
A75: 12071 | B75: 横浜 | C75: 1 | D75: 中学校 | E75: 2 | F75: 71 | G75: 71 | H75: 横浜市立日限山中学校 | I75: よこはましりつひぎりやまちゅうがっこう | J75: 233-0015 | K75: 横浜市港南区日限山 4-33-1 | L75: 045-841-1158 | M75: 045-847-1229
A76: 12072 | B76: 横浜 | C76: 1 | D76: 中学校 | E76: 2 | F76: 72 | G76: 72 | H76: 横浜市立日野南中学校 | I76: よこはましりつひのみなみちゅうがっこう | J76: 234-0054 | K76: 横浜市港南区港南台 4-37-1 | L76: 045-832-4726 | M76: 045-835-2042
A77: 12073 | B77: 横浜 | C77: 1 | D77: 中学校 | E77: 2 | F77: 73 | G77: 73 | H77: 横浜市立丸山台中学校 | I77: よこはましりつまるやまだいちゅうがっこう | J77: 233-0013 | K77: 横浜市港南区丸山台 4-1-1 | L77: 045-843-1950 | M77: 045-847-0862
A78: 12074 | B78: 横浜 | C78: 1 | D78: 中学校 | E78: 2 | F78: 74 | G78: 74 | H78: 横浜市立南高等学校 附属中学校 | I78: よこはましりみなみこうとうがっこうふぞくちゅうがっこう | J78: 233-0011 | K78: 横浜市港南区東永谷 2-1-1 | L78: 045-822-1910 | M78: 045-826-0818
A79: 12075 | B79: 横浜 | C79: 1 | D79: 中学校 | E79: 2 | F79: 75 | G79: 75 | H79: 横浜市立岡村中学校 | I79: よこはましりつおかむらちゅうがっこう | J79: 235-0021 | K79: 横浜市磯子区岡村 1-14-1 | L79: 045-751-3140 | M79: 045-754-6579
A80: 12076 | B80: 横浜 | C80: 1 | D80: 中学校 | E80: 2 | F80: 76 | G80: 76 | H80: 横浜市立汐見台中学校 | I80: よこはましりつしおみだいちゅうがっこう | J80: 235-0022 | K80: 横浜市磯子区汐見台 1-2-1 | L80: 045-752-3551 | M80: 045-754-6593
A81: 12077 | B81: 横浜 | C81: 1 | D81: 中学校 | E81: 2 | F81: 77 | G81: 77 | H81: 横浜市立浜中学校 | I81: よこはましりつはまちゅうがっこう | J81: 235-0033 | K81: 横浜市磯子区杉田 3-30-11 | L81: 045-771-4545 | M81: 045-773-9427
A82: 12078 | B82: 横浜 | C82: 1 | D82: 中学校 | E82: 2 | F82: 78 | G82: 78 | H82: 横浜市立森中学校 | I82: よこはましりつもりちゅうがっこう | J82: 235-0023 | K82: 横浜市磯子区森 5-22-1 | L82: 045-761-2321 | M82: 045-754-6719
A83: 12079 | B83: 横浜 | C83: 1 | D83: 中学校 | E83: 2 | F83: 79 | G83: 79 | H83: 横浜市立洋光台第一中学校 | I83: よこはましりつようこうだいだいいちちゅうがっこう | J83: 235-0045 | K83: 横浜市磯子区洋光台 2-5-1 | L83: 045-833-1270 | M83: 045-835-0491
A84: 12080 | B84: 横浜 | C84: 1 | D84: 中学校 | E84: 2 | F84: 80 | G84: 80 | H84: 横浜市立金沢中学校 | I84: よこはましりつかなざわちゅうがっこう | J84: 236-0042 | K84: 横浜市金沢区釜利谷東 1-1-1 | L84: 045-781-2412 | M84: 045-783-9689
A85: 12081 | B85: 横浜 | C85: 1 | D85: 中学校 | E85: 2 | F85: 81 | G85: 81 | H85: 横浜市立釜利谷中学校 | I85: よこはましりつかまりやちゅうがっこう | J85: 236-0045 | K85: 横浜市金沢区釜利谷南 3-5-1 | L85: 045-784-7311 | M85: 045-783-9762
A86: 12082 | B86: 横浜 | C86: 1 | D86: 中学校 | E86: 2 | F86: 82 | G86: 82 | H86: 横浜市立小田中学校 | I86: よこはましりつこだちゅうがっこう | J86: 236-0052 | K86: 横浜市金沢区富岡西 1-73-1 | L86: 045-775-3801 | M86: 045-773-9487
A87: 12083 | B87: 横浜 | C87: 1 | D87: 中学校 | E87: 2 | F87: 83 | G87: 83 | H87: 横浜市立大道中学校 | I87: よこはましりつだいどうちゅうがっこう | J87: 236-0035 | K87: 横浜市金沢区大道 1-85-1 | L87: 045-781-2457 | M87: 045-783-9719
A88: 12084 | B88: 横浜 | C88: 1 | D88: 中学校 | E88: 2 | F88: 84 | G88: 84 | H88: 横浜市立富岡中学校 | I88: よこはましりつとみおかちゅうがっこう | J88: 236-0052 | K88: 横浜市金沢区富岡西 5-46-1 | L88: 045-773-1218 | M88: 045-773-9429
A89: 12085 | B89: 横浜 | C89: 1 | D89: 中学校 | E89: 2 | F89: 85 | G89: 85 | H89: 横浜市立富岡東中学校 | I89: よこはましりつとみおかひがしちゅうがっこう | J89: 236-0005 | K89: 横浜市金沢区並木 1-6-1 | L89: 045-771-0716 | M89: 045-773-9439
A90: 12086 | B90: 横浜 | C90: 1 | D90: 中学校 | E90: 2 | F90: 86 | G90: 86 | H90: 横浜市立並木中学校 | I90: よこはましりつなみきちゅうがっこう | J90: 236-0005 | K90: 横浜市金沢区並木 3-4-1 | L90: 045-783-5805 | M90: 045-783-9756
A91: 12087 | B91: 横浜 | C91: 1 | D91: 中学校 | E91: 2 | F91: 87 | G91: 87 | H91: 横浜市立西柴中学校 | I91: よこはましりつにししばちゅうがっこう | J91: 236-0017 | K91: 横浜市金沢区西柴 1-23-1 | L91: 045-781-2448 | M91: 045-783-9738
A92: 12088 | B92: 横浜 | C92: 1 | D92: 中学校 | E92: 2 | F92: 88 | G92: 88 | H92: 横浜市立六浦中学校 | I92: よこはましりつむつうらちゅうがっこう | J92: 236-0031 | K92: 横浜市金沢区六浦 1-24-4 | L92: 045-701-7658 | M92: 045-783-9709
A93: 12089 | B93: 横浜 | C93: 1 | D93: 中学校 | E93: 2 | F93: 89 | G93: 89 | H93: 横浜市立秋葉中学校 | I93: よこはましりつあきばちゅうがっこう | J93: 245-0052 | K93: 横浜市戸塚区秋葉町 271-3 | L93: 045-811-6773 | M93: 045-813-9438
A94: 12090 | B94: 横浜 | C94: 1 | D94: 中学校 | E94: 2 | F94: 90 | G94: 90 | H94: 横浜市立大正中学校 | I94: よこはましりつたいしょうちゅうがっこう | J94: 245-0063 | K94: 横浜市戸塚区原宿 4-12-1 | L94: 045-851-3017 | M94: 045-854-2691
A95: 12091 | B95: 横浜 | C95: 1 | D95: 中学校 | E95: 2 | F95: 91 | G95: 91 | H95: 横浜市立戸塚中学校 | I95: よこはましりつとつかちゅうがっこう | J95: 244-0003 | K95: 横浜市戸塚区戸塚町 4542 | L95: 045-864-1531 | M95: 045-862-1903
A96: 12092 | B96: 横浜 | C96: 1 | D96: 中学校 | E96: 2 | F96: 92 | G96: 92 | H96: 横浜市立豊田中学校 | I96: よこはましりつとよだちゅうがっこう | J96: 244-0815 | K96: 横浜市戸塚区下倉田町 950 | L96: 045-864-8640 | M96: 045-861-8693
A97: 12093 | B97: 横浜 | C97: 1 | D97: 中学校 | E97: 2 | F97: 93 | G97: 93 | H97: 横浜市立名瀬中学校 | I97: よこはましりつなせちゅうがっこう | J97: 245-0051 | K97: 横浜市戸塚区名瀬町 791-6 | L97: 045-812-1601 | M97: 045-813-0294
A98: 12094 | B98: 横浜 | C98: 1 | D98: 中学校 | E98: 2 | F98: 94 | G98: 94 | H98: 横浜市立平戸中学校 | I98: よこはましりつひらどちゅうがっこう | J98: 244-0803 | K98: 横浜市戸塚区平戸町 993-4 | L98: 045-823-8272 | M98: 045-826-3991
A99: 12095 | B99: 横浜 | C99: 1 | D99: 中学校 | E99: 2 | F99: 95 | G99: 95 | H99: 横浜市立深谷中学校 | I99: よこはましりつふかやちゅうがっこう | J99: 245-0067 | K99: 横浜市戸塚区深谷町 1071 | L99: 045-852-2888 | M99: 045-853-0905
A100: 12096 | B100: 横浜 | C100: 1 | D100: 中学校 | E100: 2 | F100: 96 | G100: 96 | H100: 横浜市立舞岡中学校 | I100: よこはましりつまいおかちゅうがっこう | J100: 244-0813 | K100: 横浜市戸塚区舞岡町 226 | L100: 045-822-2722 | M100: 045-826-3308
A101: 12097 | B101: 横浜 | C101: 1 | D101: 中学校 | E101: 2 | F101: 97 | G101: 97 | H101: 横浜市立南戸塚中学校 | I101: よこはましりつみなみとつかちゅうがっこう | J101: 244-0003 | K101: 横浜市戸塚区戸塚町 1842-1 | L101: 045-871-7611 | M101: 045-853-2328
A102: 12098 | B102: 横浜 | C102: 1 | D102: 中学校 | E102: 2 | F102: 98 | G102: 98 | H102: 横浜市立飯島中学校 | I102: よこはましりついいじまちゅうがっこう | J102: 244-0842 | K102: 横浜市栄区飯島町 746-1 | L102: 045-894-2901 | M102: 045-893-9034
A103: 12099 | B103: 横浜 | C103: 1 | D103: 中学校 | E103: 2 | F103: 99 | G103: 99 | H103: 横浜市立桂台中学校 | I103: よこはましりつかつらだいちゅうがっこう | J103: 247-0034 | K103: 横浜市栄区桂台中 5-1 | L103: 045-891-2279 | M103: 045-892-2695
A104: 12100 | B104: 横浜 | C104: 1 | D104: 中学校 | E104: 2 | F104: 100 | G104: 100 | H104: 横浜市立上郷中学校 | I104: よこはましりつかみごうちゅうがっこう | J104: 247-0026 | K104: 横浜市栄区犬山町 6-2 | L104: 045-892-2478 | M104: 045-892-2976
A105: 12101 | B105: 横浜 | C105: 1 | D105: 中学校 | E105: 2 | F105: 101 | G105: 101 | H105: 横浜市立小山台中学校 | I105: よこはましりつこやまだいちゅうがっこう | J105: 247-0002 | K105: 横浜市栄区小山台 1-14-1 | L105: 045-892-7512 | M105: 045-893-4638
A106: 12102 | B106: 横浜 | C106: 1 | D106: 中学校 | E106: 2 | F106: 102 | G106: 102 | H106: 横浜市立西本郷中学校 | I106: よこはましりつにしほんごうちゅうがっこう | J106: 247-0007 | K106: 横浜市栄区小菅ケ谷 1-29-1 | L106: 045-892-1911 | M106: 045-893-9421
A107: 12103 | B107: 横浜 | C107: 1 | D107: 中学校 | E107: 2 | F107: 103 | G107: 103 | H107: 横浜市立本郷中学校 | I107: よこはましりつほんごうちゅうがっこう | J107: 247-0005 | K107: 横浜市栄区桂町 84-14 | L107: 045-892-2155 | M107: 045-892-9241
A108: 12104 | B108: 横浜 | C108: 1 | D108: 中学校 | E108: 2 | F108: 104 | G108: 104 | H108: 横浜市立大綱中学校 | I108: よこはましりつおおつなちゅうがっこう | J108: 222-0037 | K108: 横浜市港北区大倉山 3-40-1 | L108: 045-542-4422 | M108: 045-541-3440
A109: 12105 | B109: 横浜 | C109: 1 | D109: 中学校 | E109: 2 | F109: 105 | G109: 105 | H109: 横浜市立篠原中学校 | I109: よこはましりつしのはらちゅうがっこう | J109: 222-0026 | K109: 横浜市港北区篠原町 1342-3 | L109: 045-433-2402 | M109: 045-431-2444
A110: 12106 | B110: 横浜 | C110: 1 | D110: 中学校 | E110: 2 | F110: 106 | G110: 106 | H110: 横浜市立城郷中学校 | I110: よこはましりつしろさとちゅうがっこう | J110: 222-0036 | K110: 横浜市港北区小机町 325 | L110: 045-471-9203 | M110: 045-471-2880
A111: 12107 | B111: 横浜 | C111: 1 | D111: 中学校 | E111: 2 | F111: 107 | G111: 107 | H111: 横浜市立高田中学校 | I111: よこはましりつたかたちゅうがっこう | J111: 223-0063 | K111: 横浜市港北区高田町 2439 | L111: 045-591-4183 | M111: 045-591-2194
A112: 12108 | B112: 横浜 | C112: 1 | D112: 中学校 | E112: 2 | F112: 108 | G112: 108 | H112: 横浜市立樽町中学校 | I112: よこはましりつたるまちちゅうがっこう | J112: 222-0001 | K112: 横浜市港北区樽町 4-15-1 | L112: 045-542-8779 | M112: 045-541-5907
A113: 12109 | B113: 横浜 | C113: 1 | D113: 中学校 | E113: 2 | F113: 109 | G113: 109 | H113: 横浜市立新田中学校 | I113: よこはましりつにったちゅうがっこう | J113: 223-0058 | K113: 横浜市港北区新吉田東 5-25-1 | L113: 045-542-0324 | M113: 045-542-2940
A114: 12110 | B114: 横浜 | C114: 1 | D114: 中学校 | E114: 2 | F114: 110 | G114: 110 | H114: 横浜市立日吉台中学校 | I114: よこはましりつひよしだいちゅうがっこう | J114: 223-0062 | K114: 横浜市港北区日吉本町 4-9-1 | L114: 045-561-2183 | M114: 045-561-9054
A115: 12111 | B115: 横浜 | C115: 1 | D115: 中学校 | E115: 2 | F115: 111 | G115: 111 | H115: 横浜市立日吉台西中学校 | I115: よこはましりつひよしだいにしちゅうがっこう | J115: 223-0062 | K115: 横浜市港北区日吉本町 5-44-1 | L115: 045-563-3997 | M115: 045-561-9096
A116: 12112 | B116: 横浜 | C116: 1 | D116: 中学校 | E116: 2 | F116: 112 | G116: 112 | H116: 横浜市立鴨居中学校 | I116: よこはましりつかもいちゅうがっこう | J116: 226-0003 | K116: 横浜市緑区鴨居 5-12-35 | L116: 045-934-3871 | M116: 045-934-8739
A117: 12113 | B117: 横浜 | C117: 1 | D117: 中学校 | E117: 2 | F117: 113 | G117: 113 | H117: 横浜市立義務教育学校 霧が丘学園 | I117: よこはましりつぎむきょういくがっこう きりがおかがくえん | J117: 226-0016 | K117: 横浜市緑区霧が丘 4-4 | L117: 045-921-8004 | M117: 045-922-6041
A118: 12114 | B118: 横浜 | C118: 1 | D118: 中学校 | E118: 2 | F118: 114 | G118: 114 | H118: 横浜市立田奈中学校 | I118: よこはましりつたなちゅうがっこう | J118: 226-0027 | K118: 横浜市緑区長津田 2-24-1 | L118: 045-981-3101 | M118: 045-983-6034
A119: 12115 | B119: 横浜 | C119: 1 | D119: 中学校 | E119: 2 | F119: 115 | G119: 115 | H119: 横浜市立十日市場中学校 | I119: よこはましりつとおかいちばちゅうがっこう | J119: 226-0025 | K119: 横浜市緑区十日市場町 1501-42 | L119: 045-981-0360 | M119: 045-983-6432
A120: 12116 | B120: 横浜 | C120: 1 | D120: 中学校 | E120: 2 | F120: 116 | G120: 116 | H120: 横浜市立中山中学校 | I120: よこはましりつなかやまちゅうがっこう | J120: 226-0013 | K120: 横浜市緑区寺山町 653-21 | L120: 045-931-2520 | M120: 045-934-4676
A121: 12117 | B121: 横浜 | C121: 1 | D121: 中学校 | E121: 2 | F121: 117 | G121: 117 | H121: 横浜市立東鴨居中学校 | I121: よこはましりつひがしかもいちゅうがっこう | J121: 226-0003 | K121: 横浜市緑区鴨居 3-39-1 | L121: 045-931-7398 | M121: 045-934-9295
A122: 12118 | B122: 横浜 | C122: 1 | D122: 中学校 | E122: 2 | F122: 118 | G122: 118 | H122: 横浜市立あかね台中学校 | I122: よこはましりつあかねだいちゅうがっこう | J122: 227-0066 | K122: 横浜市青葉区あかね台 2-8-2 | L122: 045-985-5010 | M122: 045-985-5015
A123: 12119 | B123: 横浜 | C123: 1 | D123: 中学校 | E123: 2 | F123: 119 | G123: 119 | H123: 横浜市立青葉台中学校 | I123: よこはましりつあおばだいちゅうがっこう | J123: 227-0062 | K123: 横浜市青葉区青葉台 2-25-2 | L123: 045-983-1062 | M123: 045-983-7103
A124: 12120 | B124: 横浜 | C124: 1 | D124: 中学校 | E124: 2 | F124: 120 | G124: 120 | H124: 横浜市立あざみ野中学校 | I124: よこはましりつあざみのちゅうがっこう | J124: 225-0011 | K124: 横浜市青葉区あざみ野 1-29-1 | L124: 045-902-4836 | M124: 045-904-4054
A125: 12121 | B125: 横浜 | C125: 1 | D125: 中学校 | E125: 2 | F125: 121 | G125: 121 | H125: 横浜市立市ケ尾中学校 | I125: よこはましりついちがおちゅうがっこう | J125: 225-0024 | K125: 横浜市青葉区市ケ尾町 531-1 | L125: 045-973-3400 | M125: 045-973-1645
A126: 12122 | B126: 横浜 | C126: 1 | D126: 中学校 | E126: 2 | F126: 122 | G126: 122 | H126: 横浜市立美しが丘中学校 | I126: よこはましりつうつくしがおかちゅうがっこう | J126: 225-0002 | K126: 横浜市青葉区美しが丘 3-41-1 | L126: 045-901-6758 | M126: 045-904-1623
A127: 12123 | B127: 横浜 | C127: 1 | D127: 中学校 | E127: 2 | F127: 123 | G127: 123 | H127: 横浜市立鴨志田中学校 | I127: よこはましりつかもしだちゅうがっこう | J127: 227-0033 | K127: 横浜市青葉区鴨志田町 536 | L127: 045-961-3771 | M127: 045-961-1495
A128: 12124 | B128: 横浜 | C128: 1 | D128: 中学校 | E128: 2 | F128: 124 | G128: 124 | H128: 横浜市立すすき野中学校 | I128: よこはましりつすすきのちゅうがっこう | J128: 225-0021 | K128: 横浜市青葉区すすき野 3-4-3 | L128: 045-901-5896 | M128: 045-904-2439
A129: 12125 | B129: 横浜 | C129: 1 | D129: 中学校 | E129: 2 | F129: 125 | G129: 125 | H129: 横浜市立奈良中学校 | I129: よこはましりつならちゅうがっこう | J129: 227-0035 | K129: 横浜市青葉区すみよし台 36-3 | L129: 045-962-2753 | M129: 045-961-6017
A130: 12126 | B130: 横浜 | C130: 1 | D130: 中学校 | E130: 2 | F130: 126 | G130: 126 | H130: 横浜市立みたけ台中学校 | I130: よこはましりつみたけだいちゅうがっこう | J130: 227-0047 | K130: 横浜市青葉区みたけ台 30 | L130: 045-971-6431 | M130: 045-972-9812
A131: =+C131*10000+E131*1000+F131 -> 12127 | B131: 横浜 | C131: 1 | D131: 中学校 | E131: 2 | F131: 127 | G131: 127 | H131: 横浜市立緑が丘中学校 | I131: よこはましりつみどりがおかちゅうがっこう | J131: 227-0051 | K131: 横浜市青葉区千草台 50-1 | L131: 045-973-5375 | M131: 045-974-4293
A132: 12128 | B132: 横浜 | C132: 1 | D132: 中学校 | E132: 2 | F132: 128 | G132: 128 | H132: 横浜市立もえぎ野中学校 | I132: よこはましりつもえぎのちゅうがっこう | J132: 227-0044 | K132: 横浜市青葉区もえぎ野 4-1 | L132: 045-971-7855 | M132: 045-972-7427
A133: 12129 | B133: 横浜 | C133: 1 | D133: 中学校 | E133: 2 | F133: 129 | G133: 129 | H133: 横浜市立山内中学校 | I133: よこはましりやまうちちゅうがっこ | J133: 225-0002 | K133: 横浜市青葉区美しが丘 5-4 | L133: 045-901-0030 | M133: 045-904-1529
A134: 12130 | B134: 横浜 | C134: 1 | D134: 中学校 | E134: 2 | F134: 130 | G134: 130 | H134: 横浜市立谷本中学校 | I134: よこはましりつやもとちゅうがっこう | J134: 227-0052 | K134: 横浜市青葉区梅ケ丘 5 | L134: 045-973-7108 | M134: 045-973-9242
A135: 12131 | B135: 横浜 | C135: 1 | D135: 中学校 | E135: 2 | F135: 131 | G135: 131 | H135: 横浜市立荏田南中学校 | I135: よこはましりつえだみなみちゅうがっこう | J135: 224-0007 | K135: 横浜市都筑区荏田南 2-5-1 | L135: 045-942-0960 | M135: 045-942-8509
A136: 12132 | B136: 横浜 | C136: 1 | D136: 中学校 | E136: 2 | F136: 132 | G136: 132 | H136: 横浜市立川和中学校 | I136: よこはましりつかわわちゅうがっこう | J136: 224-0051 | K136: 横浜市都筑区富士見ケ丘 21-1 | L136: 045-941-1361 | M136: 045-942-9965
A137: 12133 | B137: 横浜 | C137: 1 | D137: 中学校 | E137: 2 | F137: 133 | G137: 133 | H137: 横浜市立茅ケ崎中学校 | I137: よこはましりつちがさきちゅうがっこう | J137: 224-0037 | K137: 横浜市都筑区茅ケ崎南 1-10-1 | L137: 045-941-0601 | M137: 045-942-9216
A138: 12134 | B138: 横浜 | C138: 1 | D138: 中学校 | E138: 2 | F138: 134 | G138: 134 | H138: 横浜市立都田中学校 | I138: よこはましりつつだちゅうがっこう | J138: 224-0053 | K138: 横浜市都筑区池辺町 2818 | L138: 045-941-2045 | M138: 045-942-9298
A139: 12135 | B139: 横浜 | C139: 1 | D139: 中学校 | E139: 2 | F139: 135 | G139: 135 | H139: 横浜市立中川中学校 | I139: よこはましりつなかがわちゅうがっこう | J139: 224-0027 | K139: 横浜市都筑区大棚町 240 | L139: 045-592-3701 | M139: 045-593-5942
A140: 12136 | B140: 横浜 | C140: 1 | D140: 中学校 | E140: 2 | F140: 136 | G140: 136 | H140: 横浜市立中川西中学校 | I140: よこはましりつなかがわにしちゅうがっこう | J140: 224-0001 | K140: 横浜市都筑区中川 2-1-1 | L140: 045-912-1270 | M140: 045-913-0126
A141: 12137 | B141: 横浜 | C141: 1 | D141: 中学校 | E141: 2 | F141: 137 | G141: 137 | H141: 横浜市立早渕中学校 | I141: よこはましりつはやぶちちゅうがっこう | J141: 224-0025 | K141: 横浜市都筑区早渕 2-4-1 | L141: 045-593-8841 | M141: 045-593-8824
A142: 12138 | B142: 横浜 | C142: 1 | D142: 中学校 | E142: 2 | F142: 138 | G142: 138 | H142: 横浜市立東山田中学校 | I142: よこはましりつひがしやまたちゅうがっこう | J142: 224-0023 | K142: 横浜市都筑区東山田 2-9-1 | L142: 045-594-5107 | M142: 045-590-3780
A143: 12139 | B143: 横浜 | C143: 1 | D143: 中学校 | E143: 2 | F143: 139 | G143: 139 | H143: 鶴見大学附属中学校 | I143: つるみだいがくふぞくちゅうがっこう | J143: 230-0063 | K143: 横浜市鶴見区鶴見 2-2-1 | L143: 045-581-6325 | M143: 045-581-6329
A144: 12140 | B144: 横浜 | C144: 1 | D144: 中学校 | E144: 2 | F144: 140 | G144: 140 | H144: 捜真女学校中学部 | I144: そうしんじょがっこうちゅうがくぶ | J144: 221-8720 | K144: 横浜市神奈川区中丸 8 | L144: 045-491-3686 | M144: 045-491-6715
A145: 12141 | B145: 横浜 | C145: 1 | D145: 中学校 | E145: 2 | F145: 141 | G145: 141 | H145: 神奈川学園中学校 | I145: かながわがくえんちゅうがっこう | J145: 221-0844 | K145: 横浜市神奈川区沢渡 18 | L145: 045-311-2961 | M145: 045-311-2474
A146: 12142 | B146: 横浜 | C146: 1 | D146: 中学校 | E146: 2 | F146: 142 | G146: 142 | H146: 聖光学院中学校 | I146: せいこうがくえんちゅうがっこう | J146: 231-0837 | K146: 横浜市中区滝之上 100 | L146: 045-621-2051 | M146: 045-621-2005
A147: 12143 | B147: 横浜 | C147: 1 | D147: 中学校 | E147: 2 | F147: 143 | G147: 143 | H147: 横浜国立大学教育学部附属横浜中学校 | I147: よこはまこくりつだいがくきょういくがくぶふぞくよこはまちゅうがっこう | J147: 232-0061 | K147: 横浜市南区大岡 2-31-3 | L147: 045-742-2281 | M147: 045-742-2522
A148: 12144 | B148: 横浜 | C148: 1 | D148: 中学校 | E148: 2 | F148: 144 | G148: 144 | H148: 横浜富士見丘学園中学校 | I148: よこはまふじみがおかがくえんちゅうがっこう | J148: 241-0814 | K148: 横浜市旭区中沢 1-24-1 | L148: 045-367-4380 | M148: 045-367-4381
A149: 12145 | B149: 横浜 | C149: 1 | D149: 中学校 | E149: 2 | F149: 145 | G149: 145 | H149: 中央大学附属横浜中学校 | I149: ちゅうおうだいがくふぞくよこはまちゅうがっこう | J149: 224-8515 | K149: 横浜市都筑区牛久保東 1-14-1 | L149: 045-592-0801 | M149: 045-591-5584
A150: 12146 | B150: 横浜 | C150: 1 | D150: 中学校 | E150: 2 | F150: 146 | G150: 146 | H150: 桐蔭学園中等教育学校 | I150: とういんがくえんちゅうとうきょういくがっこう | J150: 225-8502 | K150: 横浜市青葉区鉄町 1614 | L150: 045-971-1411 | M150: 045-972-1501
A151: 12147 | B151: 横浜 | C151: 1 | D151: 中学校 | E151: 2 | F151: 147 | G151: 147 | H151: 関東学院六浦中学校 | I151: かんとうがくいんむつうらちゅうがっこう | J151: 236-8504 | K151: 横浜市金沢区六浦東 1-50-1 | L151: 045-781-2525 | M151: 045-781-2527
A152: 12148 | B152: 横浜 | C152: 1 | D152: 中学校 | E152: 2 | F152: 148 | G152: 148 | H152: 山手学院中学校 | I152: やまてがくいんちゅうがっこう | J152: 247-0013 | K152: 横浜市栄区上郷町 460 | L152: 045-891-2111 | M152: 045-890-4032
A153: 12149 | B153: 横浜 | C153: 1 | D153: 中学校 | E153: 2 | F153: 149 | G153: 149 | H153: 神奈川大学附属中学校 | I153: かながわだいがくふぞくちゅうがっこう | J153: 226-0014 | K153: 横浜市緑区台村町 800 | L153: 045-934-6211 | M153: 045-934-6509
A154: 13001 | B154: 横浜 | C154: 1 | D154: 高等学校 | E154: 3 | F154: 1 | G154: 1 | H154: 県立鶴見高等学校 | I154: けんりつつるみこうとうがっこう | J154: 230-0012 | K154: 横浜市鶴見区下末吉 6-2-1 | L154: 045-581-4692 | M154: 045-584-8505
A155: 13002 | B155: 横浜 | C155: 1 | D155: 高等学校 | E155: 3 | F155: 2 | G155: 2 | H155: 横浜市立東高等学校 | I155: よこはましりつひがしこうとうがっこう | J155: 230-0076 | K155: 横浜市鶴見区馬場 3-5-1 | L155: 045-571-0851 | M155: 045-585-5780
A156: 13003 | B156: 横浜 | C156: 1 | D156: 高等学校 | E156: 3 | F156: 3 | G156: 3 | H156: 橘学苑中学校・高等学校 | I156: たちばながくえんちゅうがっこう・こうとうがっこう | J156: 230-0073 | K156: 横浜市鶴見区獅子ケ谷 1-10-35 | L156: 045-581-0063 | M156: 045-584-8643
A157: 13004 | B157: 横浜 | C157: 1 | D157: 高等学校 | E157: 3 | F157: 4 | G157: 4 | H157: 鶴見大学附属高等学校 | I157: つるみだいがくふぞくこうとうがっこう | J157: 230-0063 | K157: 横浜市鶴見区鶴見 2-2-1 | L157: 045-581-6325 | M157: 045-581-6329
A158: 13005 | B158: 横浜 | C158: 1 | D158: 高等学校 | E158: 3 | F158: 5 | G158: 5 | H158: 白鵬女子高等学校 | I158: はくほうじょしこうとうがっこう | J158: 230-0074 | K158: 横浜市鶴見区北寺尾 4-10-13 | L158: 045-581-6721 | M158: 045-571-3372
A159: 13006 | B159: 横浜 | C159: 1 | D159: 高等学校 | E159: 3 | F159: 6 | G159: 6 | H159: 法政大学国際高等学校 | I159: ほうせいだいがくこくさいこうとうがっこう | J159: 230-0078 | K159: 横浜市鶴見区岸谷 1-13-1 | L159: 045-571-4482 | M159: 045-581-9991
A160: 13007 | B160: 横浜 | C160: 1 | D160: 高等学校 | E160: 3 | F160: 7 | G160: 7 | H160: 県立横浜翠嵐高等学校 | I160: けんりつよこはますいらんこうとうがっこう | J160: 221-0854 | K160: 横浜市神奈川区三ツ沢南町 1-1 | L160: 045-311-4621 | M160: 045-312-9142
A161: 13008 | B161: 横浜 | C161: 1 | D161: 高等学校 | E161: 3 | F161: 8 | G161: 8 | H161: 県立城郷高等学校 | I161: けんりつしろさとこうとうがっこう | J161: 221-0862 | K161: 横浜市神奈川区三枚町 364-1 | L161: 045-382-5254 | M161: 045-382-7691
A162: 13009 | B162: 横浜 | C162: 1 | D162: 高等学校 | E162: 3 | F162: 9 | G162: 9 | H162: 県立神奈川工業高等学校 | I162: けんりつかながわこうぎょうこうとうがっこう | J162: 221-0812 | K162: 横浜市神奈川区平川町 19-1 | L162: 045‐491‐9461 | M162: 045‐413‐4101
A163: 13010 | B163: 横浜 | C163: 1 | D163: 高等学校 | E163: 3 | F163: 10 | G163: 10 | H163: 県立神奈川総合高等学校 | I163: けんりつかながわそうごうこうとうがっこう | J163: 221-0812 | K163: 横浜市神奈川区平川町 19-2 | L163: 045-491-2000 | M163: 045-491-3190
A164: 13011 | B164: 横浜 | C164: 1 | D164: 高等学校 | E164: 3 | F164: 11 | G164: 11 | H164: 横浜創英中学・高等学校 | I164: よこはまそうえいちゅうがく・こうとうがっこう | J164: 221-0004 | K164: 横浜市神奈川区西大口 28 | L164: 045-421-3121 | M164: 045-421-3125
A165: 13012 | B165: 横浜 | C165: 1 | D165: 高等学校 | E165: 3 | F165: 12 | G165: 12 | H165: 浅野高等学校 | I165: あさのこうとうがっこう | J165: 221-0012 | K165: 横浜市神奈川区子安台 1-3-1 | L165: 045-421-3281 | M165: 045-421-4080
A166: 13013 | B166: 横浜 | C166: 1 | D166: 高等学校 | E166: 3 | F166: 13 | G166: 13 | H166: 捜真女学校高等学部 | I166: そうしんじょがっこうこうとうがくぶ | J166: 221-0803 | K166: 横浜市神奈川区中丸 8 | L166: 045-491-3686 | M166: 045-491-6715
A167: 13014 | B167: 横浜 | C167: 1 | D167: 高等学校 | E167: 3 | F167: 14 | G167: 14 | H167: 神奈川学園高等学校 | I167: かながわがくえんこうとうがっこう | J167: 221-0844 | K167: 横浜市神奈川区沢渡 18 | L167: 045-311-2961 | M167: 045-311-2474
A168: 13015 | B168: 横浜 | C168: 1 | D168: 高等学校 | E168: 3 | F168: 15 | G168: 15 | H168: 神奈川朝鮮中高級学校 | I168: かながわちょうせんちゅうこうきゅうがっこう | J168: 221-0844 | K168: 横浜市神奈川区沢渡 21 | L168: 045-311-0689 | M168: 045-548-5297
A169: 13016 | B169: 横浜 | C169: 1 | D169: 高等学校 | E169: 3 | F169: 16 | G169: 16 | H169: 県立横浜平沼高等学校 | I169: けんりつよこはまひらぬまこうとうがっこう | J169: 220-0073 | K169: 横浜市西区岡野町 1-5-8 | L169: 045-313-9200 | M169: 045-311-0519
A170: 13017 | B170: 横浜 | C170: 1 | D170: 高等学校 | E170: 3 | F170: 17 | G170: 17 | H170: 県立横浜緑ケ丘高等学校 | I170: けんりつよこはまみどりがおかこうとうがっこう | J170: 231-0832 | K170: 横浜市中区本牧緑ケ丘 37 | L170: 045-621-8641 | M170: 045-624-0765
A171: 13018 | B171: 横浜 | C171: 1 | D171: 高等学校 | E171: 3 | F171: 18 | G171: 18 | H171: 県立横浜立野高等学校 | I171: けんりつよこはまたてのこうとうがっこう | J171: 231-0825 | K171: 横浜市中区本牧間門 40-1 | L171: 045-621-0261 | M171: 045-624-3756
A172: 13019 | B172: 横浜 | C172: 1 | D172: 高等学校 | E172: 3 | F172: 19 | G172: 19 | H172: 横浜市立みなと総合高等学校 | I172: よこはましりつみなとそうごうこうとうがっこう | J172: 231-0023 | K172: 横浜市中区山下町 231 | L172: 045-662-3710 | M172: 045-663-2495
A173: 13020 | B173: 横浜 | C173: 1 | D173: 高等学校 | E173: 3 | F173: 20 | G173: 20 | H173: 聖光学院中学・高等学校 | I173: せいこうがくいんちゅうがく・こうとうがっこう | J173: 231-8681 | K173: 横浜市中区滝之上 100 | L173: 045-621-2051 | M173: 045-621-2005
A174: 13021 | B174: 横浜 | C174: 1 | D174: 高等学校 | E174: 3 | F174: 21 | G174: 21 | H174: 横浜雙葉中学高等学校 | I174: よこはまふたばちゅうがくこうとうがっこう | J174: 231-8653 | K174: 横浜市中区山手町 88 | L174: 045-641-1004 | M174: 045-663-1650
A175: 13022 | B175: 横浜 | C175: 1 | D175: 高等学校 | E175: 3 | F175: 22 | G175: 22 | H175: 横浜女学院中学校高等学校 | I175: よこはまじょがくいんちゅうがっこうこうとうがっこう | J175: 231-0862 | K175: 横浜市中区山手町 203 | L175: 045-641-3284 | M175: 045-651-7688
A176: 13023 | B176: 横浜 | C176: 1 | D176: 高等学校 | E176: 3 | F176: 23 | G176: 23 | H176: 関東学院中学校高等学校 | I176: かんとうがくいんちゅうがっこうこうとうがっこう | J176: 232-0002 | K176: 横浜市南区三春台 4 | L176: 045-231-1001 | M176: 045-231-6628
A177: 13024 | B177: 横浜 | C177: 1 | D177: 高等学校 | E177: 3 | F177: 24 | G177: 24 | H177: 県立横浜清陵高等学校 | I177: けんりつよこはませいりょうこうとうがっこう | J177: 232-0007 | K177: 横浜市南区清水ケ丘 41 | L177: 045-242-1926 | M177: 045-253-6393
A178: 13025 | B178: 横浜 | C178: 1 | D178: 高等学校 | E178: 3 | F178: 25 | G178: 25 | H178: 横浜市立横浜商業高等学校 | I178: よこはましりつよこはましょうぎょうこうとうがっこう | J178: 232-0006 | K178: 横浜市南区南太田 2-30-1 | L178: 045-713-2323 | M178: 045-713-3969
A179: 13026 | B179: 横浜 | C179: 1 | D179: 高等学校 | E179: 3 | F179: 26 | G179: 26 | H179: 県立横浜国際高等学校 | I179: けんりつよこはまこくさいこうとうがっこう | J179: 232-0066 | K179: 横浜市南区六ツ川 1-731 | L179: 045-721-1434 | M179: 045-742-9493
A180: 13027 | B180: 横浜 | C180: 1 | D180: 高等学校 | E180: 3 | F180: 27 | G180: 27 | H180: 県立光陵高等学校 | I180: けんりつこうりょうこうとうがっこう | J180: 240-0026 | K180: 横浜市保土ケ谷区権太坂 1-7-1 | L180: 045-712-5577 | M180: 045-742-9717
A181: 13028 | B181: 横浜 | C181: 1 | D181: 高等学校 | E181: 3 | F181: 28 | G181: 28 | H181: 県立保土ケ谷高等学校 | I181: けんりつほどがやこうとうがっこう | J181: 240-0045 | K181: 横浜市保土ケ谷区川島町 1557 | L181: 045-371-7781 | M181: 045-371-4560
A182: 13029 | B182: 横浜 | C182: 1 | D182: 高等学校 | E182: 3 | F182: 29 | G182: 29 | H182: 横浜市立桜丘高等学校 | I182: よこはましりつさくらがおかこうとうがっこう | J182: 240-0011 | K182: 横浜市保土ケ谷区桜ケ丘 2-15-1 | L182: 045-331-5021 | M182: 045-332-6039
A183: 13030 | B183: 横浜 | C183: 1 | D183: 高等学校 | E183: 3 | F183: 30 | G183: 30 | H183: 横浜清風高等学校 | I183: よこはませいふうこうとうがっこう | J183: 240-0023 | K183: 横浜市保土ケ谷区岩井町 447 | L183: 045-731-4361 | M183: 045-716-0202
A184: 13031 | B184: 横浜 | C184: 1 | D184: 高等学校 | E184: 3 | F184: 31 | G184: 31 | H184: 県立旭高等学校 | I184: けんりつあさひこうとうがっこう | J184: 241-0806 | K184: 横浜市旭区下川井町 2247 | L184: 045-953-3301 | M184: 045-951-3117
A185: 13032 | B185: 横浜 | C185: 1 | D185: 高等学校 | E185: 3 | F185: 32 | G185: 32 | H185: 県立希望ケ丘高等学校 | I185: けんりつきぼうがおかこうとうがっこう | J185: 241-0824 | K185: 横浜市旭区南希望が丘 79-1 | L185: 045-391-0061 | M185: 045-361-9789
A186: 13033 | B186: 横浜 | C186: 1 | D186: 高等学校 | E186: 3 | F186: 33 | G186: 33 | H186: 県立横浜旭陵高等学校 | I186: けんりつよこはまきょくりょうこうとうがっこう | J186: 241-0001 | K186: 横浜市旭区上白根町 1161-7 | L186: 045-953-1004 | M186: 045-951-3151
A187: 13034 | B187: 横浜 | C187: 1 | D187: 高等学校 | E187: 3 | F187: 34 | G187: 34 | H187: 県立二俣川看護福祉高等学校 | I187: けんりつふたまたがわかんごふくしこうとうがっこう | J187: 241-0815 | K187: 横浜市旭区中尾 1-5-1 | L187: 045-391-9143 | M187: 045-361-9777
A188: 13035 | B188: 横浜 | C188: 1 | D188: 高等学校 | E188: 3 | F188: 35 | G188: 35 | H188: 横浜商科大学高等学校 | I188: よこはましょうかだいがくこうとうがっこう | J188: 241-0005 | K188: 横浜市旭区白根 7-1-1 | L188: 045-951-2246 | M188: 045-955-3664
A189: 13036 | B189: 横浜 | C189: 1 | D189: 高等学校 | E189: 3 | F189: 36 | G189: 36 | H189: 横浜富士見丘学園中学校・高等学校 | I189: よこはまふじみがおかがくえんちゅうがっこう・こうとうがっこう | J189: 241-0814 | K189: 横浜市旭区中沢 1-24-1 | L189: 045-367-4380 | M189: 045-367-4381
A190: 13037 | B190: 横浜 | C190: 1 | D190: 高等学校 | E190: 3 | F190: 37 | G190: 37 | H190: 県立松陽高等学校 | I190: けんりつしょうようこうとうがっこう | J190: 245-0016 | K190: 横浜市泉区和泉町 7713 | L190: 045-803-3036 | M190: 045-802-9935
A191: 13038 | B191: 横浜 | C191: 1 | D191: 高等学校 | E191: 3 | F191: 38 | G191: 38 | H191: 県立横浜緑園高等学校 | I191: けんりつよこはまりょくえんこうとうがっこう | J191: 245-0003 | K191: 横浜市泉区岡津町 2667 | L191: 045-812-3371 | M191: 045-813-1431
A192: 13039 | B192: 横浜 | C192: 1 | D192: 高等学校 | E192: 3 | F192: 39 | G192: 39 | H192: 県立横浜瀬谷高等学校 | I192: けんりつよこはませやこうとうがっこう | J192: 246-0011 | K192: 横浜市瀬谷区東野台 29-1 | L192: 045-301-6747 | M192: 045-304-2955
A193: 13040 | B193: 横浜 | C193: 1 | D193: 高等学校 | E193: 3 | F193: 40 | G193: 40 | H193: 横浜隼人高等学校 | I193: よこはまはやとこうとうがっこう | J193: 246-0026 | K193: 横浜市瀬谷区阿久和南 1-3-1 | L193: 045-364-5104 | M193: 045-366-5424
A194: 13041 | B194: 横浜 | C194: 1 | D194: 高等学校 | E194: 3 | F194: 41 | G194: 41 | H194: 県立横浜南陵高等学校 | I194: けんりつよこはまなんりょうこうとうがっこう | J194: 234-0053 | K194: 横浜市港南区日野中央 2-26-1 | L194: 045-842-3764 | M194: 045-846-6856
A195: =+C195*10000+E195*1000+F195 -> 13042 | B195: 横浜 | C195: 1 | D195: 高等学校 | E195: 3 | F195: 42 | G195: 42 | H195: 県立横浜明朋高等学校 | I195: けんりつよこはまめいほうこうとうがっこう | J195: 234-0054 | K195: 横浜市港南区港南台 9-18-1 | L195: 045-836-1680 | M195: 045-835-1248
A196: 13043 | B196: 横浜 | C196: 1 | D196: 高等学校 | E196: 3 | F196: 43 | G196: 43 | H196: 横浜市立南高等学校 | I196: よこはましりつみなみこうとうがっこう | J196: 233-0011 | K196: 横浜市港南区東永谷 2-1-1 | L196: 045-822-1910 | M196: 045-826-0818
A197: 13044 | B197: 横浜 | C197: 1 | D197: 高等学校 | E197: 3 | F197: 44 | G197: 44 | H197: 県立横浜氷取沢高等学校 | I197: けんりつよこはまひとりざわこうとうがっこう | J197: 235-0043 | K197: 横浜市磯子区氷取沢町 938-2 | L197: 045-772-0606 | M197: 045-776-2468
A198: 13045 | B198: 横浜 | C198: 1 | D198: 高等学校 | E198: 3 | F198: 45 | G198: 45 | H198: 横浜学園中・高等学校 | I198: よこはまがくえんちゅう・こうとうがっこう | J198: 235-0021 | K198: 横浜市磯子区岡村 2-4-1 | L198: 045-751-6941 | M198: 045-761-7956
A199: 13046 | B199: 横浜 | C199: 1 | D199: 高等学校 | E199: 3 | F199: 46 | G199: 46 | H199: 県立金沢総合高等学校 | I199: けんりつかなざわそうごうこうとうがっこう | J199: 236-0051 | K199: 横浜市金沢区富岡東 6-34-1 | L199: 045-773-6771 | M199: 045-776-2406
A200: 13047 | B200: 横浜 | C200: 1 | D200: 高等学校 | E200: 3 | F200: 47 | G200: 47 | H200: 横浜市立金沢高等学校 | I200: よこはましりつかなざわこうとうがっこう | J200: 236-0027 | K200: 横浜市金沢区瀬戸 22-1 | L200: 045-781-5761 | M200: 045-788-5150
... 405 more rows

Sheet レターパック封筒宛先
I1: =VLOOKUP($AJ$4,$AN$4:$AY$10,3) ->  | K1: =VLOOKUP($AJ$4,$AN$4:$AY$10,4) ->  | M1: =VLOOKUP($AJ$4,$AN$4:$AY$10,5) ->  | O1: =VLOOKUP($AJ$4,$AN$4:$AY$10,6) ->  | Q1: =VLOOKUP($AJ$4,$AN$4:$AY$10,7) ->  | S1: =VLOOKUP($AJ$4,$AN$4:$AY$10,8) ->  | U1: =VLOOKUP($AJ$4,$AN$4:$AY$10,9) -> 
X3: ← よろしければご利用ください | AN3: 0
AJ4: =IF(申し込みについて!J7="横浜支部",1,IF(申し込みについて!J7="川崎支部",2,IF(申し込みについて!J7="相模原支部",3,IF(申し込みについて!J7="県南支部",4,IF(申し込みについて!J7="県央支部",5,IF(申し込みについて!J7="西湘支部",6,IF(申し込みについて!J7="湘南支部",7,""))))))) ->  | AM4: 横浜 | AN4: 1 | AO4: 横浜吹奏楽連盟 事務局 行 | AP4: ２ | AQ4: ２ | AR4: ６ | AS4: ８ | AT4: ７ | AU4: ９ | AV4: ９ | AW4: 横浜市緑区中山4-32-30 | AX4: 日本郵便株式会社 緑郵便局留め | AY4: 横浜吹奏楽連盟事務局 宛
AM5: 川崎 | AN5: 2 | AO5: 川崎吹奏楽連盟 事務局 行 | AP5: ２ | AQ5: １ | AR5: ３ | AS5: ０ | AT5: ０ | AU5: １ | AV5: １ | AW5: 川崎市高津区久本 3-11-1 | AX5: 川崎市立高津高等学校 | AY5: 長谷川 剛士 宛
AM6: 相模原 | AN6: 3 | AO6: 相模原吹奏楽連盟 事務局 行 | AP6: ２ | AQ6: ５ | AR6: ２ | AS6: ０ | AT6: ３ | AU6: ２ | AV6: ５ | AW6: 相模原市南区新磯野 5-1-10 | AX6: 相模原市立相武台中学校 | AY6: 清水 靖士 宛
AM7: 県南 | AN7: 4 | AO7: 県南吹奏楽連盟 事務局 行 | AP7: ２ | AQ7: ４ | AR7: ８ | AS7: ０ | AT7: ０ | AU7: ２ | AV7: ５ | AW7: 鎌倉市七里ガ浜東2－3－1 | AX7: 県立七里ガ浜高等学校 | AY7: 玉井 敏晴 宛
A8: =VLOOKUP($AJ$4,$AN$4:$AY$10,10) ->  | AM8: 県央 | AN8: 5 | AO8: 県央吹奏楽連盟 事務局 行 | AP8: ２ | AQ8: ５ | AR8: ２ | AS8: ０ | AT8: ０ | AU8: １ | AV8: ５ | AW8: 座間市南栗原3－8－1 | AX8: 座間市立南中学校 | AY8: 鈴木 崇 宛
AM9: 西湘 | AN9: 6 | AO9: 西湘吹奏楽連盟 事務局 行 | AP9: ２ | AQ9: ５ | AR9: ４ | AS9: ０ | AT9: ０ | AU9: ７ | AV9: ７ | AW9: 平塚市龍城ヶ丘 4-26 | AX9: 平塚市立浜岳中学校 | AY9: 稲葉 しおり 宛
B10: =VLOOKUP($AJ$4,$AN$4:$AY$10,11) ->  | AM10: 湘南 | AN10: 7 | AO10: 湘南吹奏楽連盟 事務局 行 | AP10: ２ | AQ10: ５ | AR10: ３ | AS10: ０ | AT10: １ | AU10: １ | AV10: １ | AW10: 高座郡寒川町一之宮3－9－1 | AX10: 寒川町立寒川中学校 | AY10: 望月 誠 宛
X12: ← 送付先は、「申し込みについて」のシートで 支部名を選択すると表示されます。
C14: =VLOOKUP($AJ$4,$AN$4:$AY$10,12) -> 
X17: 送付先、差出人等がすべて転記されていることを確認できたら、印刷してください。（用紙：Ｂ５縦） 線に合わせて切って、貼ってください。
C23: 差出人
X24: レターパックプラス（赤色）で郵送してください。
E25: 〒 | F25: =+参加申込書!C8 -> 
F27: =+参加申込書!C9 -> 
F29: =+参加申込書!B7 ->  | X29: ← 差出人は、参加申込書から転記されます。
F31: =+参加申込書!C12 -> 0
F33: TEL | H33: =+参加申込書!C10 -> 
E36: 吹奏楽コンクール参加申込書在中 | X36: ← 参加部門名が参加申込書から転記されます。
E37: ５月９日（金）消印有効 | O37: =+参加申込書!E5 -> 0
B38: 内容物の確認 | E38: □ | F38: ①参加申込書（原本１部） | X38: 提出物を確認したらチェックをしましょう。
B39: （チェック）
X41: ※レターパックプラス（赤）は、ポストに投函できますが、回収時間を 過ぎるとその日の消印になりませんので、ご注意ください。
K45: き り と り

Sheet ※連盟使用欄１
A1: 学校コード | B1: 支部 | C1: 部門 | D1: 順 | E1: 団体名 | F1: 団体名ふりがな | G1: 形態 | H1: 〒 | I1: 住所 | J1: 学校ＴＥＬ | K1: 学校ＦＡＸ | L1: 連絡責任者 | M1: 顧問ふりがな | N1: 携帯電話番号 | O1: アドレス | P1: 中１ | Q1: 中２ | R1: 中３ | S1: 高１ | T1: 高２ | U1: 高３ | V1: 合計 | W1: 役員１ | X1: 日程１ | Y1: 曜日１ | Z1: 役員２ | AA1: 日程２ | AB1: 曜日２ | AC1: 役員３ | AD1: 日程３ | AE1: 曜日３ | AF1: 役員４ | AG1: 日程４ | AH1: 曜日４ | AI1: 役員５ | AJ1: 日程５ | AK1: 曜日５
A2: =+申し込みについて!J13 -> 0 | B2: =+申し込みについて!J7 -> 0 | C2: =+申し込みについて!J9 -> 0 | E2: =+参加申込書!B7 ->  | F2: =+参加申込書!B6 ->  | G2: =+申し込みについて!J11 -> 0 | H2: =+参加申込書!C8 ->  | I2: =+参加申込書!C9 ->  | J2: =+参加申込書!C10 ->  | K2: =+参加申込書!H10 ->  | L2: =+参加申込書!C12 -> 0 | M2: =+参加申込書!C11 -> 0 | N2: =+参加申込書!H12 -> 0 | O2: =+参加申込書!D13 -> 0 | P2: =+参加申込書!E16 -> 0 | Q2: =+参加申込書!F16 -> 0 | R2: =+参加申込書!G16 -> 0 | S2: =+参加申込書!H16 -> 0 | T2: =+参加申込書!I16 -> 0 | U2: =+参加申込書!J16 -> 0 | V2: =+参加申込書!K16 -> 0 | W2: =+参加申込書!H19 -> 0 | X2: =+参加申込書!F19 -> 0 | Y2: =+参加申込書!G19 -> 0 | Z2: =+参加申込書!H20 -> 0 | AA2: =+参加申込書!F20 -> 0 | AB2: =+参加申込書!G20 -> 0 | AC2: =+参加申込書!H21 -> 0 | AD2: =+参加申込書!F21 -> 0 | AE2: =+参加申込書!G21 -> 0 | AF2: =+参加申込書!H22 -> 0 | AG2: =+参加申込書!F22 -> 0 | AH2: =+参加申込書!G22 -> 0 | AI2: =+参加申込書!H23 -> 0 | AJ2: =+参加申込書!F23 -> 0 | AK2: =+参加申込書!G23 -> 0

Sheet ※連盟使用欄２
A1: 学校コード | B1: 支部 | C1: 部門 | D1: 整理番号 | E1: 出演順 | F1: 団体名 | G1: 団体名ふりがな | H1: 形態 | I1: 指揮者 | J1: 指揮ふりがな | K1: 他団体 | L1: あり | M1: 出演者数 | N1: ピアノ | O1: 課題曲 | P1: 曲目（邦文） | Q1: ふりがな | R1: Spelling | S1: 作曲者邦文 | T1: ふりがな | U1: Spelling | V1: 生年 | W1: 没年 | X1: 編曲者邦文 | Y1: ふりがな | Z1: Spelling | AA1: 出版社 | AB1: 楽譜 | AC1: オフステージ | AD1: ア | AE1: イ1 | AF1: イ2 | AG1: ウ | AH1: その他 | AI1: 著作権 | AJ1: 許諾先 | AK1: 搬入補助員 | AL1: 使用打楽器 | AM1: 〒 | AN1: 住所 | AO1: 学校ＴＥＬ | AP1: 学校ＦＡＸ | AQ1: 連絡責任者 | AR1: 顧問ふりがな | AS1: 携帯電話番号 | AT1: アドレス
A2: =+申し込みについて!J13 -> 0 | B2: =+申し込みについて!J7 -> 0 | C2: =+申し込みについて!J9 -> 0 | F2: =+参加申込書!B7 ->  | G2: =+参加申込書!B6 ->  | H2: =+申し込みについて!J11 -> 0 | I2: =+曲目等申込書!D17 -> 0 | J2: =+曲目等申込書!D16 -> 0 | K2: =+曲目等申込書!D18 -> 0 | L2: =+曲目等申込書!J18 -> 0 | M2: =+曲目等申込書!R16 -> 0 | N2: =+曲目等申込書!R18 -> 0 | O2: =+曲目等申込書!D19 -> 0 | P2: =+曲目等申込書!F21 -> 0 | Q2: =+曲目等申込書!F20 -> 0 | R2: =+曲目等申込書!F22 -> 0 | S2: =+曲目等申込書!F24 -> 0 | T2: =+曲目等申込書!F23 -> 0 | U2: =+曲目等申込書!N23 -> 0 | V2: =+曲目等申込書!N24 -> 0 | W2: =+曲目等申込書!S24 -> 0 | X2: =+曲目等申込書!F26 -> 0 | Y2: =+曲目等申込書!F25 -> 0 | Z2: =+曲目等申込書!N25 -> 0 | AA2: =+曲目等申込書!F27 -> 0 | AB2: =+曲目等申込書!T27 -> 0 | AC2: =+曲目等申込書!A31 -> 0 | AD2: =+曲目等申込書!J30 -> 0 | AE2: =+曲目等申込書!N30 -> 0 | AF2: =+曲目等申込書!V30 -> 0 | AG2: =+曲目等申込書!J31 -> 0 | AH2: =+曲目等申込書!P31 -> 0 | AI2: =+曲目等申込書!A37 -> 0 | AJ2: =+曲目等申込書!G38 -> 0 | AK2: =+曲目等申込書!V28 -> 0 | AL2: =+曲目等申込書!D28 -> 0 | AM2: =+参加申込書!C8 ->  | AN2: =+参加申込書!C9 ->  | AO2: =+参加申込書!C10 ->  | AP2: =+参加申込書!H10 ->  | AQ2: =+参加申込書!C12 -> 0 | AR2: =+参加申込書!C11 -> 0 | AS2: =+参加申込書!H12 -> 0 | AT2: =+参加申込書!D13 -> 0
